{"text_format":"1","workbook":"xlsx","n_sheets":6,"sheets":["おまかせクラウドアップセキュリティ申込書","高度な脅威対策ポリシー","【記入例】高度な脅威対策ポリシー","情報漏えい対策","【記入例】情報漏えい対策","Config"],"not_rendered":{"charts":0,"images":0,"macros":1,"external_links":0,"defined_names":19,"comments":0,"pivot_tables":0},"unopened":[],"bounds":{"document_bytes":16777216,"sheet_cells":100000,"rows_first":2000,"rows_last":500,"rows_between":2000,"halvings":0,"cell_chars":16384,"cell_head_chars":4096},"cells_cut":0,"cells_raw":0,"read":"whole","date_system":"1900"}

{"sheet":"おまかせクラウドアップセキュリティ申込書","index":0,"n_rows":72,"n_cols":57,"rows_kept":72,"cut":false,"hidden":false,"merged":[[9,2,11,9],[9,10,9,12],[9,13,9,54],[10,10,11,54],[12,2,13,9],[12,10,12,11],[12,34,12,37],[12,38,12,54],[13,10,13,54],[2,2,5,54],[7,2,7,54],[8,2,8,9],[8,10,8,11],[8,12,8,15],[8,17,8,21],[8,22,8,25],[8,26,8,29],[8,30,8,32],[14,2,14,9],[14,10,14,14],[14,15,14,54],[12,12,12,14],[12,16,12,19],[12,20,12,23],[12,24,12,27],[12,28,12,33],[23,1,23,55],[17,45,19,48],[17,49,19,49],[17,50,19,53],[18,15,19,32],[15,2,19,9],[15,10,16,14],[15,15,16,54],[17,10,19,14],[17,15,17,17],[17,18,17,32],[17,33,19,37],[17,38,19,39],[17,40,19,43],[17,44,19,44]]}
["C"]
[null,null,null,null,null,null,null,null,null,null,null,null,null,null,null,null,null,null,null,null,null,null,null,null,null,null,null,null,null,null,null,null,null,null,null,null,null,null,null,null,null,null,null,null,null,null,null,null,null,null,null,"Ver. 1.2"]
[null,null,"おまかせクラウドアップセキュリティ設定変更申込書"]
[]
[]
[]
[null,null,"おまかせクラウドアップセキュリティの利用規約に同意の上、以下のとおり申し込みます。"]
[null,null,"　※設定変更申込書は、セキュリティサポートデスク(cloud-app-security-ml@east.ntt.co.jp)に送付してください。",null,null,null,null,null,null,null,null,null,null,null,null,null,null,null,null,null,null,null,null,null,null,null,null,null,null,null,null,null,null,null,null,null,null,null,null,null,null,null,null,null,null,null,null,null,null,null,null,null,null,null,null,null,"Professionalプラン"]
[null,null,"お申し込み日",null,null,null,null,null,null,null,"西暦",null,null,null,null,null,"年",null,null,null,null,null,"月",null,null,null,null,null,null,null,"日"]
[null,null,"ご契約者名\n（法人・企業名）",null,null,null,null,null,null,null,"フリガナ"]
[]
[]
[null,null,"契約者住所",null,null,null,null,null,null,null,"〒",null,null,null,null,"-",null,null,null,null,null,null,null,null,"都・道・府・県",null,null,null,null,null,null,null,null,null,"市・区・郡"]
[]
[null,null,"管理コンソール\nログインID。",null,null,null,null,null,null,null,"CAS",null,null,null,null,""]
[null,null,"お申し込み者",null,null,null,null,null,null,null,"部署名"]
[]
[null,null,null,null,null,null,null,null,null,null,"氏名",null,null,null,null,"フリガナ",null,null,"aa",null,null,null,null,null,null,null,null,null,null,null,null,null,null,"連絡先\n電話番号",null,null,null,null,"（",null,null,null,null,null,"）",null,null,null,null,"－"]
[]
[]
[]
[]
[]
[null,"コンテンツの有効化をクリックしてマクロを有効にしてください"]
[]
[]
[null,"工設_1",{"$f":"IF(M9=\"\",\"\",M9)","v":""},null,null,"B116の”コピー用起点”を名称設定したセルから↓方向に\"END\"まで処理します（無限ループ回避の保険で最大１００件で処理をストップさせています）"]
[null,"工設_2",{"$f":"IF(R9=\"\",\"\",R9)","v":""},null,null,"空白は処理をスキップするように修正(2020/01/31)"]
[null,"工設_3",{"$f":"IF(AA9=\"\",\"\",AA9)","v":""},null,null,"\"工設_xx\"は①-1の各セルに設定した名称で、隣のC列の値を代入します。"]
[null,"工設_4",{"$f":"IF(N10=\"\",\"\",N10)","v":""}]
[null,"工設_5",{"$f":"IF(K11=\"\",\"\",K11)","v":""}]
[null,"工設_6",{"$f":"IF(M13=\"\",\"\",M13)","v":""}]
[null,"工設_7",{"$f":"IF(Q13=\"\",\"\",Q13)","v":""}]
[null,"工設_8",{"$f":"IF(U13=\"\",\"\",U13)","v":""}]
[null,"工設_9",{"$f":"IF(AC13=\"\",\"\",AC13)","v":""}]
[null,"工設_10",{"$f":"IF(AM13=\"\",\"\",AM13)","v":""}]
[null,"工設_11",{"$f":"IF(P16=\"\",\"\",P16)","v":""}]
[null,"工設_12",{"$f":"IF(S18=\"\",\"\",S18)","v":"aa"}]
[null,"工設_13",{"$f":"IF(P19=\"\",\"\",P19)","v":""}]
[null,"工設_14",{"$f":"IF(AO18=\"\",\"\", AO18)","v":""}]
[null,"工設_15",{"$f":"IF(AT18=\"\",\"\",AT18)","v":""}]
[null,"工設_16",{"$f":"IF(AY18=\"\",\"\",AY18)","v":""}]
[null,"工設_17",{"$f":"IF(#REF!=\"\",\"\",#REF!)","v":{"$error":"#REF!"}}]
[null,"工設_18",{"$f":"IF(#REF!=\"\",\"\",#REF!)","v":{"$error":"#REF!"}}]
[null,"工設_19",{"$f":"IF(AND(#REF!=\"\",#REF!=\"\"),\"\",IF(#REF!=\"■\",#REF!,#REF!))","v":{"$error":"#REF!"}}]
[null,"工設_20",{"$f":"IF(#REF!=\"\",\"\",#REF!)","v":{"$error":"#REF!"}}]
[null,"工設_21",{"$f":"IF(#REF!=\"\",\"\",#REF!)","v":{"$error":"#REF!"}}]
[null,"工設_22",{"$f":"IF(#REF!=\"\",\"\",#REF!)","v":{"$error":"#REF!"}}]
[null,"工設_23",{"$f":"IF(#REF!=\"\",\"\",#REF!)","v":{"$error":"#REF!"}}]
[null,"工設_24",{"$f":"IF(#REF!=\"\",\"\",#REF!)","v":{"$error":"#REF!"}}]
[null,"工設_25",{"$f":"IF(#REF!=\"\",\"\",#REF!)","v":{"$error":"#REF!"}}]
[null,"工設_26",{"$f":"IF(#REF!=\"\",\"\",#REF!)","v":{"$error":"#REF!"}}]
[null,"工設_27",{"$f":"#REF!","v":{"$error":"#REF!"}}]
[null,"工設_28",{"$f":"#REF!","v":{"$error":"#REF!"}}]
[null,"工設_29",{"$f":"#REF!","v":{"$error":"#REF!"}}]
[null,"工設_30",{"$f":"IF(K14=\"\",\"\",K14)","v":""},null,"設定ｼｰﾄのﾁｪｯｸ欄削除に伴い、このセルの「名前」も削除（2020/1/30 Ver7.5）⇒契約者住所詳細欄追加のため、この「名前」を復活（2020/4/7 Ver8.0）"]
[null,"工設_31",{"$f":"IF(AND(#REF!=\"\",M13=\"\"),\"\",IF(#REF! = \"□\",#REF!, M13))","v":{"$error":"#REF!"}}]
[null,"工設_32",{"$f":"IF(AND(#REF!=\"\",Q13=\"\"),\"\",IF(#REF! = \"□\",#REF!, Q13))","v":{"$error":"#REF!"}}]
[null,"工設_33",{"$f":"IF(AND(#REF!=\"\",U13=\"\"),\"\",IF(#REF! = \"□\",#REF!, U13))","v":{"$error":"#REF!"}}]
[null,"工設_34",{"$f":"IF(AND(#REF!=\"\",AC13=\"\"),\"\",IF(#REF! = \"□\",#REF!, AC13))","v":{"$error":"#REF!"}}]
[null,"工設_35",{"$f":"IF(AND(#REF!=\"\",AM13=\"\"),\"\",IF(#REF! = \"□\",#REF!, AM13))","v":{"$error":"#REF!"}}]
[null,"工設_36",{"$f":"IF(AND(#REF!=\"\",K14=\"\"),\"\",IF(#REF! = \"□\",#REF!, K14))","v":{"$error":"#REF!"}}]
[null,"工設_37",{"$f":"IF(#REF!=\"\",\"\",#REF!)","v":{"$error":"#REF!"}}]
[null,"工設_38",{"$f":"IF(#REF!=\"\",\"\",#REF!)","v":{"$error":"#REF!"}}]
[null,"工設_39",{"$f":"IF(#REF!=\"\",\"\",#REF!)","v":{"$error":"#REF!"}}]
[null,"工設_40",{"$f":"IF(#REF!=\"\",\"\",#REF!)","v":{"$error":"#REF!"}}]
[null,"工設_41",{"$f":"IF(Y13=\"\",\"\",Y13)","v":"都・道・府・県"}]
[null,"工設_42",{"$f":"IF(AI13=\"\",\"\",AI13)","v":"市・区・郡"}]
[null,"工設_43",{"$f":"IF(Y13=\"\",\"\",IF(#REF! = \"□\",#REF!,Y13))","v":{"$error":"#REF!"}}]
[null,"工設_44",{"$f":"IF(AI13=\"\",\"\",IF(#REF!=\"□\",#REF!,AI13))","v":{"$error":"#REF!"}}]
[null,"工設_45",{"$f":"IF(#REF!=\"\",\"\",#REF!)","v":{"$error":"#REF!"}},null,"付加サービス契約ID（CYA）の追加に伴って増設（2020/10/27 Ver8.4）"]
[null,"END"]

{"sheet":"高度な脅威対策ポリシー","index":1,"n_rows":123,"n_cols":15,"rows_kept":123,"cut":false,"hidden":false,"merged":[[6,9,6,11],[17,9,17,11],[83,2,121,2],[57,2,72,2],[73,2,82,2],[6,7,6,8],[17,7,17,8],[19,2,21,2],[22,2,43,2],[44,2,56,2]]}
[]
[null,"【シート1】アプリケーションコントロール詳細設定"]
[null,"設定したいポリシーの設定を変更クラウドアプリ項目欄に説明やデフォルト設定等欄を参考に入力ください。"]
[null,null,"※カテゴリグループすべての設定を推奨設定に変更したい場合は、【カテゴリごとに一括設定】に記入してください。"]
[null,null,"※カテゴリグループの設定ごとに独自設定を設定したい場合は、【カテゴリ配下ジャンルごとの設定】に記入してください。"]
[]
[null,"【カテゴリごとに一括設定(推奨設定)】",null,null,null,null,null,"変更クラウドアプリを選択",null,"※水色で塗りつぶされているセルはプルダウンから選択",null,null,null,null,"※シート①-1にて、該当項目にチェックを入れてから設定してください↓"]
[null,"項番","カテゴリ",null,null,"デフォルト設定",null,"Exchange","OneDrive","SharePoint","Teams","Gmail","Google ドライブ","DropBox","Box"]
[null,"Ａ","一般",null,null,"ON"]
[null,"Ｂ","不正プログラム検索",null,null,"ON"]
[null,"Ｃ","ファイルブロック",null,null,"OFF"]
[null,"Ｄ","Webレピュテーション",null,null,"ON"]
[null,"Ｅ","仮想アナライザ",null,null,"ON",null,"　"]
[null,"Ｆ","高度なスパムメール対策","EXChangeOnline,Gmailのみ対象となります",null,"ON"]
[null,"Ｇ"]
[null,"Ｈ"]
[]
[null,"【カテゴリ配下ポリシーごとの設定】",null,null,null,null,null,"変更クラウドアプリを選択",null,"※水色で塗りつぶされているセルはプルダウンから選択",null,null,null,null,"※シート①-1にて、該当項目にチェックを入れてから設定してください↓"]
[null,"項番","カテゴリ","項目","説明","デフォルト設定等",null,"Exchange Online","OneDrive","SharePoint Online","Teams","Gmail","Google ドライブ","DropBox","Box"]
[null,1,"一般","ポリシー名","実行された際に表示されるポリシー名です。","初期設定の○○ポリシー - 高度な脅威対策"]
[null,2,null,"概要","ポリシー名の概要が記載されます","-"]
[null,3,null,"優先度","ポリシーの優先度が数字で表されます。数字が小さいほど優先度が高く、デフォルトで値が入っています。","1or2"]
[null,4,"不正プログラム検索","ルール"]
[null,5,null,"不正プログラム検索","不正プログラム検索を行うルールを指定します。以下3項目から選択します。\n1.すべてのファイルを検索\n2.実際のファイルタイプで識別されたファイルを検索\n3.ファイルタイプを指定","1.すべてのファイルを検索"]
[null,6,null,"機械学習型検索を有効にする","検知した脅威情報を学習し、未知の脅威や検知しやすい脅威を学習し検索します","OFF"]
[null,7,null,"IntelliTrapを有効にする","実行可能なリアルタイム圧縮ファイルをブロックし、他の不正プログラムの特性と組み合わせることでリアルタイム圧縮アルゴリズムを使用してネットワークセキュリティを回避するウイルスのリスクを低減します","OFF"]
[null,8,null,"検索機能向上のために不審ファイルの情報をトレンドマイクロに送信する","検知した脅威情報をトレンドマイクロに送信し、今後の脅威対策や未知の脅威などの情報収集を許可します。","OFF"]
[null,9,null,"処理"]
[null,10,null,"処理","検知した不正プログラムに対する処理を設定します。以下項目2つから設定できます。デフォルトは1です。\n1.トレンドマイクロの推奨処理\n2.検出された脅威に対するカスタマイズ処理","1.トレンドマイクロの推奨処理\n※2を選択する場合、以下11～22の設定を選択します。"]
[null,11,null,"ウイルス","検出したウイルスに対する処理を設定します。","以下から設定を選択します。\n「隔離」 / 「削除」 / 「放置」 / 「メールにラベル付け」 / 「テキスト/ファイルで置換」および 「通知」 / 「通知しない」"]
[null,12,null,"ワーム/トロイの木馬","検出したワームおよびトロイの木馬に対する処理を設定します。","以下から設定を選択します。\n「隔離」 / 「削除」 / 「放置」 / 「メールにラベル付け」 / 「テキスト/ファイルで置換」および 「通知」 / 「通知しない」"]
[null,13,null,"パッカー","検出したパッカーに対する処理を設定します。","以下から設定を選択します。\n「隔離」 / 「削除」 / 「放置」 / 「メールにラベル付け」 / 「テキスト/ファイルで置換」および 「通知」 / 「通知しない」"]
[null,14,null,"その他の不正レコード","検出したその他の不正レコードに対する処理を設定します。","以下から設定を選択します。\n「隔離」 / 「削除」 / 「放置」 / 「メールにラベル付け」 / 「テキスト/ファイルで置換」および 「通知」 / 「通知しない」"]
[null,15,null,"スパイウェア/グレーウェア","検出したスパイウェア/グレーウェアに対する処理を設定します。","以下から設定を選択します。\n「隔離」 / 「削除」 / 「放置」 / 「メールにラベル付け」 / 「テキスト/ファイルで置換」および 「通知」 / 「通知しない」"]
[null,16,null,"ランサムウェア","検出したランサムウェアに対する処理を設定します。","以下から設定を選択します。\n「隔離」 / 「削除」 / 「放置」 / 「メールにラベル付け」 / 「テキスト/ファイルで置換」および 「通知」 / 「通知しない」"]
[null,17,null,"検索不能な圧縮ファイル","検出した検索不能な圧縮ファイルに対する処理を設定します。\n※項番20,21で詳細設定が可能です。","以下から設定を選択します。\n「隔離」 / 「削除」 / 「放置」 / 「メールにラベル付け」および 「通知」 / 「通知しない」"]
[null,18,null,"サイズが150MBを超えるファイル","検出したサイズが150MBを超えるファイルに対する処理を設定します。","以下から設定を選択します。\n「隔離」 / 「削除」 / 「放置」 / 「メールにラベル付け」および 「通知」 / 「通知しない」"]
[null,19,null,"検索不能なファイルのオプション"]
[null,20,null,"パスワード保護された圧縮ファイル","検出した検索不能な圧縮ファイルのパスワードによって保護されているファイルに対する処理を設定します。","以下から設定を選択します。\n「隔離」 / 「削除」 / 「放置」 および 「通知」 / 「通知しない」"]
[null,21,null,"その他のパスワード保護されたファイル","検出した検索不能な圧縮ファイルのその他のパスワードによって保護されているファイルに対する処理を設定します。","以下から設定を選択します。\n「隔離」 / 「削除」 / 「放置」 および 「通知」 / 「通知しない」"]
[null,22,null,"通知"]
[null,23,null,"管理者に通知する","実行された処理の通知を管理者に行うかを設定します。","ON"]
[null,24,null,"通知のしきい値","通知を行う頻度を設定します。\n1.一括通知を時間に応じて通知する。1時間～n日単位で設定できます。\n2.一括通知を件数ごとに通知します。\n3.個別に通知します","設定する番号及び通知する条件を記載します。\n例：1、および2時間ごと"]
[null,25,null,"ユーザーに通知する","実行された処理の通知をユーザーに行うかを設定します。","OFF"]
[null,26,"ファイルブロック","ファイルブロックを有効にする","ファイルブロックを有効にするか設定します。","OFF"]
[null,27,null,"ルール"]
[null,28,null,"ファイルブロックの種類","ブロックするファイルタイプを設定します。以下から設定します。\n1.すべてのファイルをブロック\n2.特定のファイルをブロック ","1.すべてのファイルをブロック\n※1を選択する場合、必要に応じ以下29,29-1の設定を選択します。\n※2を選択する場合、以下30,30-1の設定を選択します。"]
[null,29,null,"ブロックリスト","ブロックしないファイルタイプを指定します。以下から設定します。\n1.ブロックしないファイルタイプ\n2.ブロックしないファイル拡張子\n3.ブロックしないファイル名"]
[null,"29-1",null,"ブロックしないファイルタイプの記入","29で選択した項目に沿ってファイルタイプや拡張子を記載します。","独自に設定する単語を記載"]
[null,30,null,"ブロックリスト","ブロックするファイルタイプを指定します。以下から設定します。\n1.ブロックするファイルタイプ\n2.ブロックするファイル拡張子\n3.ブロックするファイル名"]
[null,"30-1",null,"ブロックするファイルタイプの記入","30で選択した項目に沿ってファイルタイプや拡張子を記載します。","独自に設定する単語を記載"]
[null,31,null,"処理"]
[null,32,null,"処理：","検出時の処理を設定します。","以下から設定を選択します。\n「隔離」 / 「削除」 / 「放置」 / 「メールにラベル付け」 / 「テキスト/ファイルで置換」および 「通知」 / 「通知しない」"]
[null,33,null,"通知"]
[null,34,null,"管理者に通知する","実行された処理の通知を管理者に行うかを設定します。","ON"]
[null,35,null,"通知のしきい値","通知を行う頻度を設定します。\n1.一括通知を時間に応じて通知する。1時間～n日単位で設定できます。\n2.一括通知を件数ごとに通知します。\n3.個別に通知します","設定する番号及び通知する条件を記載します。\n例：1、および2時間ごと"]
[null,36,null,"ユーザーに通知する","実行された処理の通知をユーザーに行うかを設定します。","OFF"]
[null,37,"Webレピュテーション","Webレピュテーションを有効にする","Webレピュテーションを有効にするか設定します。","OFF"]
[null,38,null,"ルール"]
[null,39,null,"セキュリティレベル:","セキュリティレベルを設定します。以下から選択します。\n1.高 / より多くのWebからの脅威に適用されますが、誤検出のリスクも高くなります\n2.中 / 誤検出の件数を低く抑えながら、多くのWebからの脅威に適用されます\n3.低 / Webからの脅威の適用数は減少しますが、誤検出のリスクも低下します","2.中 / 誤検出の件数を低く抑えながら、多くのWebからの脅威に適用されます"]
[null,40,null,"承認済み、ブロックするURLリスト"]
[null,41,null,"承認済みURLリストを有効にする","承認済みURLリストを有効にする設定をします。","OFF\n※有効にする場合、項番42,48を設定します。"]
[null,42,null,"承認するURLリスト","承認するURLリストを設定します。","実際に承認するURLを記載"]
[null,43,null,"ブロックするURLリストを有効にする","ブロックするURLリストを有効にする設定をします。","OFF\n※有効にする場合、項番44を設定します。"]
[null,44,null,"ブロックするURLリスト","ブロックするURLリストを設定します。","実際に承認するURLを記載"]
[null,45,null,"処理"]
[null,46,null,"処理：","検出時の処理を設定します。","以下から設定を選択します。\n「隔離」 / 「削除」 / 「放置」 / 「メールにラベル付け」 / 「件名にタグを挿入」 および 「通知」 / 「通知しない」"]
[null,47,null,"トレンドマイクロのWebレピュテーションサービスで、未評価のURLに対して処理を実行する ","トレンドマイクロのWebレピュテーションサービスで、未評価のURLに対して処理を実行するかどうかを設定します","OFF"]
[null,48,null,"ブロックするURLリスト:","ブロックするリストを設定し、検出した際の処理を設定します。","以下から設定を選択します。\n「隔離」 / 「削除」 / 「メールにラベル付け」　および 「通知」 / 「通知しない」"]
[null,49,null,"通知"]
[null,50,null,"管理者に通知する","実行された処理の通知を管理者に行うかを設定します。","ON"]
[null,51,null,"通知のしきい値","通知を行う頻度を設定します。\n1.一括通知を時間に応じて通知する。1時間～n日単位で設定できます。\n2.一括通知を件数ごとに通知します。\n3.個別に通知します","設定する番号及び通知する条件を記載します。\n例：1、および2時間ごと"]
[null,52,null,"ユーザーに通知する","実行された処理の通知をユーザーに行うかを設定します。","OFF"]
[null,53,"仮想アナライザ","仮想アナライザを有効にする ","仮想アナライザを有効にするか設定します。","OFF"]
[null,54,null,"監視およびログのみ (監視モード)","監視およびログのみ (監視モード)のモードに切り替えるか設定します。有効の場合、設定した処理は実行されません。","OFF"]
[null,55,null,"ルール"]
[null,56,null,"次を分析:","分析する対象を設定します。以下から選択できます。\n1.ファイル \n2.URL","1.ON\n2.OFF\n※2を有効にする場合、Webレピュテーションを有効にする必要があります。"]
[null,57,null,"処理"]
[null,58,null,"処理：","検出時の処理を設定します。24項目から設定できます。","01.リスク高 / 隔離 および 通知\n02.リスク高 / 隔離 および 通知しない\n03.リスク高 / 削除 および 通知\n04.リスク高 / 削除 および 通知しない\n05.リスク高 / 放置 および 通知\n06.リスク高 / 放置 および 通知しない\n07.リスク中 / 隔離 および 通知\n08.リスク中 / 隔離 および 通知しない\n09.リスク中 / 削除 および 通知\n10.リスク中 / 削除 および 通知しない\n11.リスク中 / 放置 および 通知\n12.リスク中 / 放置 および 通知しない\n13.リスク低 / 隔離 および 通知\n14.リスク低 / 隔離 および 通知しない\n15.リスク低 / 削除 および 通知\n16.リスク低 / 削除 および 通知しない\n17.リスク低 / 放置 および 通知\n18.リスク低 / 放置 および 通知しない\n19.未評価  / 隔離 および 通知\n20.未評価  / 隔離 および 通知しない\n21.未評価  / 削除 および 通知\n22.未評価  / 削除 および 通知しない\n23.未評価  / 放置 および 通知\n24.未評価  / 放置 および 通知しない"]
[null,59,null,"通知"]
[null,60,null,"管理者に通知する","実行された処理の通知を管理者に行うかを設定します。","ON"]
[null,61,null,"通知のしきい値","通知を行う頻度を設定します。\n1.一括通知を時間に応じて通知する。1時間～n日単位で設定できます。\n2.一括通知を件数ごとに通知します。\n3.個別に通知します","設定する番号及び通知する条件を記載します。\n例：1、および2時間ごと"]
[null,62,null,"ユーザーに通知する","実行された処理の通知をユーザーに行うかを設定します。","OFF"]
[null,63,"高度なスパムメール対策\n※Exchage Online及び\nGmailのみ対象となります","高度なスパムメール対策を有効にする","高度なスパムメール対策を有効にするか設定します。","OFF"]
[null,64,null,"検出機能向上のため不審メール情報をトレンドマイクロに送信する ","検出機能向上のため不審メール情報をトレンドマイクロに送信するかを設定します。","OFF"]
[null,65,null,"ルール"]
[null,66,null,"適用：","ポリシー設定を反映させるメッセージの範囲を設定します。以下より選択します。\n1,受信メッセージ\n2,すべてのメッセージ","1,受信メッセージ"]
[null,67,null,"検出レベル:","スパムメールに対する検知度数を設定します。高いほど検知率は上がりますが、誤検知も多くなります。以下より選択します。\n1,高 / スパムメールの検出率が最も高くなりますが、誤検出の可能性も高くなります。\n2,中 / スパムメールの検出率が高く、誤検出の可能性は中程度です。\n3,低 / スパムメールとして明白なものが検出され、誤検出の可能性が最も低くなります。","2,中 / スパムメールの検出率が高く、誤検出の可能性は中程度です。"]
[null,68,null,"表示名のスプーフィング検知:","企業内で使用している表示名と似た表示名を持つ外部送信者からのメッセージを分析するかを設定します。","OFF"]
[null,69,null,"グレーメール検出"]
[null,70,null,"グレーメール検出を有効にする ","グレーメール検出を有効にするかを設定します。項番71～74を設定する場合、有効にする必要があります。","ON"]
[null,71,null,"マーケティングメッセージとニュースレター ","マーケティングメッセージとニュースレターの検出を有効にするか設定します。","ON"]
[null,72,null,"ソーシャルネットワーク通知 ","ソーシャルネットワーク通知を有効にするか設定します。","OFF"]
[null,73,null,"フォーラム通知 ","フォーラム通知を有効にするか設定します。","OFF"]
[null,74,null,"バルクメール ","バルクメールの検出を有効にするか設定します。","ON"]
[null,75,null,"ライティングスタイル分析によるBEC検出"]
[null,76,null,"ライティングスタイル分析を有効にする","ライティングスタイル分析を有効にするかを設定します。有効にした場合、項番77～を設定します。","OFF"]
[null,77,null,"処理:","検出したメールに対する処理を設定します。以下から選択します。\n1,メールにラベル付け\n2,削除\n3,隔離\n4.スパムメールに移動\n5,放置","1,メールにラベル付け"]
[null,78,null,"偽装された可能性のある送信者に通知する ","偽装された可能性のある送信者に通知するかを設定します。","OFF"]
[null,79,null,"元のメールメッセージを添付する ","元のメールメッセージを添付するかを設定します。","OFF"]
[null,80,null,"フィードバックの送信を許可する ","フィードバックの送信を許可するかを設定します。","OFF"]
[null,81,null,"管理者に通知する","管理者に通知するかを設定します。","OFF"]
[null,82,null,"元のメールメッセージを添付する ","管理者に通知する際に元のメールメッセージを添付するかを設定します。","OFF"]
[null,83,null,"承認済み、ブロックする送信者リスト"]
[null,84,null,"承認済み送信者リストを有効にする ","承認済み送信者リストを有効にするかを設定します。","OFF"]
[null,85,null,"承認済み送信者リスト","承認する送信者のメールアドレスを指定します。ワイルドカード(*)を利用することでドメインでの一括指定も行えます。","承認する送信者のメールアドレスを記載します。"]
[null,86,null,"ブロックする送信者リストを有効にする ","ブロックする送信者リストを有効にするかを設定します。","OFF"]
[null,87,null,"ブロックする送信者リスト","ブロックする送信者のメールアドレスを指定します。ワイルドカード(*)を利用することでドメインでの一括指定も行えます。","ブロックする送信者のメールアドレスを記載します。"]
[null,88,null,"処理"]
[null,89,null,"グレーメール:","グレーメールに対する処理を設定します。以下から選択します。\n隔離 / 削除 / メールにラベル付け / スパムメールへ移動 / 放置　及び　通知 / 通知しない","放置　及び　通知しない"]
[null,90,null,"詐欺サイト:","詐欺サイトに対する処理を設定します。以下から選択します。\n隔離 / 削除 / メールにラベル付け / スパムメールへ移動 / 放置　及び　通知 / 通知しない","放置　及び　通知"]
[null,91,null,"BEC: ","BECに対する処理を設定します。以下から選択します。\n隔離 / 削除 / メールにラベル付け / スパムメールへ移動 / 放置　及び　通知 / 通知しない","放置　及び　通知"]
[null,92,null,"フィッシング:","フィッシングに対する処理を設定します。以下から選択します。\n隔離 / 削除 / メールにラベル付け / スパムメールへ移動 / 放置　及び　通知 / 通知しない","放置　及び　通知"]
[null,93,null,"ランサムウェア:","ランサムウェアに対する処理を設定します。以下から選択します。\n隔離 / 削除 / メールにラベル付け / スパムメールへ移動 / 放置　及び　通知 / 通知しない","放置　及び　通知"]
[null,94,null,"不正なスパムメール:","不正なスパムメールに対する処理を設定します。以下から選択します。\n隔離 / 削除 / メールにラベル付け / スパムメールへ移動 / 放置　及び　通知 / 通知しない","放置　及び　通知"]
[null,95,null,"その他のスパムメール","その他のスパムメールに対する処理を設定します。以下から選択します。\n隔離 / 削除 / メールにラベル付け / スパムメールへ移動 / 放置　及び　通知 / 通知しない","メールにラベル付け　及び　通知"]
[null,"95-1",null,"その他のスパムメール（オプション）","内部ドメインから送信されたメッセージが、その他のスパムメールとして検出された場合は放置するオプションを設定できます。","オプション：ON"]
[null,96,null,"ブロックする送信者リスト:","ブロックする送信者リストに対する処理を設定します。以下から選択します。\n隔離 / 削除 / メールにラベル付け / スパムメールへ移動　及び　通知 / 通知しない","メールにラベル付け　及び　通知しない"]
[null,97,null,"通知"]
[null,98,null,"管理者に通知する","実行された処理の通知を管理者に行うかを設定します。","ON"]
[null,99,null,"通知のしきい値","通知を行う頻度を設定します。\n1.一括通知を時間に応じて通知する。1時間～n日単位で設定できます。\n2.一括通知を件数ごとに通知します。\n3.個別に通知します","設定する番号及び通知する条件を記載します。\n例：1、および2時間ごと"]
[null,100,null,"ユーザーに通知する","実行された処理の通知をユーザーに行うかを設定します。","OFF"]
[null,101]

{"sheet":"【記入例】高度な脅威対策ポリシー","index":2,"n_rows":126,"n_cols":15,"rows_kept":126,"cut":false,"hidden":false,"merged":[[44,2,56,2],[57,2,72,2],[73,2,85,2],[86,2,124,2],[6,7,6,8],[6,9,6,11],[17,7,17,8],[17,9,17,11],[19,2,21,2],[22,2,43,2]]}
[]
[null,"【シート1】アプリケーションコントロール詳細設定"]
[null,"設定したいポリシーの設定を変更クラウドアプリ項目欄に説明やデフォルト設定等欄を参考に入力ください。"]
[null,null,"※カテゴリグループすべての設定を推奨設定に変更したい場合は、【カテゴリごとに一括設定】に記入してください。"]
[null,null,"※カテゴリグループの設定ごとに独自設定を設定したい場合は、【カテゴリ配下ジャンルごとの設定】に記入してください。"]
[]
[null,"【カテゴリごとに一括設定(推奨設定)】",null,null,null,null,null,"変更クラウドアプリを選択",null,"※水色で塗りつぶされているセルはプルダウンから選択",null,null,null,null,"※シート①-1にて、該当項目にチェックを入れてから設定してください↓"]
[null,"項番","カテゴリ",null,null,"デフォルト設定",null,"Exchange","OneDrive","SharePoint","Teams","Gmail","Google ドライブ","DropBox","Box"]
[null,"Ａ","一般",null,null,"OFF",null,null,null,null,null,"○","○"]
[null,"Ｂ","不正プログラム検索",null,null,"OFF",null,null,null,null,null,"○","○"]
[null,"Ｃ","ファイルブロック",null,null,"OFF",null,null,null,null,null,"○","○"]
[null,"Ｄ","Webレピュテーション",null,null,"OFF",null,null,null,null,null,"○","○"]
[null,"Ｅ","仮想アナライザ",null,null,"OFF",null,"　",null,null,null,"○","○"]
[null,"Ｆ","高度なスパムメール対策","EXChangeOnline,Gmailのみ対象となります",null,"OFF",null,null,null,null,null,"○"]
[null,"Ｇ"]
[null,"Ｈ"]
[]
[null,"【カテゴリ配下ポリシーごとの設定】",null,null,null,null,null,"変更クラウドアプリを選択",null,"※水色で塗りつぶされているセルはプルダウンから選択",null,null,null,null,"※シート①-1にて、該当項目にチェックを入れてから設定してください↓"]
[null,"項番","カテゴリ","項目","説明","デフォルト設定等",null,"Exchange Online","OneDrive","SharePoint Online","Teams","Gmail","Google ドライブ","DropBox","Box"]
[null,1,"一般","ポリシー名","実行された際に表示されるポリシー名です。","初期設定の○○ポリシー - 高度な脅威対策",null,"Exchangeポリシー - 高度な脅威対策",null,null,null,null,null,null,"Boxポリシー - 高度な脅威対策"]
[null,2,null,"概要","ポリシー名の概要が記載されます","-"]
[null,3,null,"優先度","ポリシーの優先度が数字で表されます。数字が小さいほど優先度が高く、デフォルトで値が入っています。","1or2",null,1,null,null,null,null,null,null,1]
[null,4,"不正プログラム検索","ルール"]
[null,5,null,"不正プログラム検索","不正プログラム検索を行うルールを指定します。以下3項目から選択します。\n1.すべてのファイルを検索\n2.実際のファイルタイプで識別されたファイルを検索\n3.ファイルタイプを指定","1.すべてのファイルを検索",null,1,null,null,null,null,null,null,2]
[null,6,null,"機械学習型検索を有効にする","検知した脅威情報を学習し、未知の脅威や検知しやすい脅威を学習し検索します","OFF",null,"ON",null,null,null,null,null,null,"ON"]
[null,7,null,"IntelliTrapを有効にする","実行可能なリアルタイム圧縮ファイルをブロックし、他の不正プログラムの特性と組み合わせることでリアルタイム圧縮アルゴリズムを使用してネットワークセキュリティを回避するウイルスのリスクを低減します","OFF",null,"OFF",null,null,null,null,null,null,"OFF"]
[null,8,null,"検索機能向上のために不審ファイルの情報をトレンドマイクロに送信する","検知した脅威情報をトレンドマイクロに送信し、今後の脅威対策や未知の脅威などの情報収集を許可します。","OFF",null,"ON",null,null,null,null,null,null,"ON"]
[null,9,null,"処理"]
[null,10,null,"処理","検知した不正プログラムに対する処理を設定します。以下項目2つから設定できます。デフォルトは1です。\n1.トレンドマイクロの推奨処理\n2.検出された脅威に対するカスタマイズ処理","1.トレンドマイクロの推奨処理\n※2を選択する場合、以下11～22の設定を選択します。",null,1,null,null,null,null,null,null,2]
[null,11,null,"ウイルス","検出したウイルスに対する処理を設定します。","以下から設定を選択します。\n「隔離」 / 「削除」 / 「放置」 および 「通知」 / 「通知しない」",null,null,null,null,null,null,null,null,"隔離　及び　通知しない"]
[null,12,null,"ワーム/トロイの木馬","検出したワームおよびトロイの木馬に対する処理を設定します。","以下から設定を選択します。\n「隔離」 / 「削除」 / 「放置」 および 「通知」 / 「通知しない」",null,null,null,null,null,null,null,null,"隔離　及び　通知しない"]
[null,13,null,"パッカー","検出したパッカーに対する処理を設定します。","以下から設定を選択します。\n「隔離」 / 「削除」 / 「放置」 および 「通知」 / 「通知しない」",null,null,null,null,null,null,null,null,"削除　及び　通知"]
[null,14,null,"その他の不正レコード","検出したその他の不正レコードに対する処理を設定します。","以下から設定を選択します。\n「隔離」 / 「削除」 / 「放置」 および 「通知」 / 「通知しない」",null,null,null,null,null,null,null,null,"削除　及び　通知"]
[null,15,null,"スパイウェア/グレーウェア","検出したスパイウェア/グレーウェアに対する処理を設定します。","以下から設定を選択します。\n「隔離」 / 「削除」 / 「放置」 および 「通知」 / 「通知しない」",null,null,null,null,null,null,null,null,"削除　及び　通知"]
[null,16,null,"ランサムウェア","検出したランサムウェアに対する処理を設定します。","以下から設定を選択します。\n「隔離」 / 「削除」 / 「放置」 および 「通知」 / 「通知しない」",null,null,null,null,null,null,null,null,"隔離　及び　通知"]
[null,17,null,"検索不能な圧縮ファイル","検出した検索不能な圧縮ファイルに対する処理を設定します。\n※項番20,21で詳細設定が可能です。","以下から設定を選択します。\n「隔離」 / 「削除」 / 「放置」 および 「通知」 / 「通知しない」",null,null,null,null,null,null,null,null,"放置　及び　通知しない"]
[null,18,null,"サイズが150MBを超えるファイル","検出したサイズが150MBを超えるファイルに対する処理を設定します。","以下から設定を選択します。\n「隔離」 / 「削除」 / 「放置」 および 「通知」 / 「通知しない」",null,null,null,null,null,null,null,null,"放置　及び　通知しない"]
[null,19,null,"検索不能なファイルのオプション"]
[null,20,null,"パスワード保護された圧縮ファイル","検出した検索不能な圧縮ファイルのパスワードによって保護されているファイルに対する処理を設定します。","以下から設定を選択します。\n「隔離」 / 「削除」 / 「放置」 および 「通知」 / 「通知しない」",null,null,null,null,null,null,null,null,"放置　及び　通知しない"]
[null,21,null,"その他のパスワード保護されたファイル","検出した検索不能な圧縮ファイルのその他のパスワードによって保護されているファイルに対する処理を設定します。","以下から設定を選択します。\n「隔離」 / 「削除」 / 「放置」 および 「通知」 / 「通知しない」",null,null,null,null,null,null,null,null,"放置　及び　通知しない"]
[null,22,null,"通知"]
[null,23,null,"管理者に通知する","実行された処理の通知を管理者に行うかを設定します。","ON",null,"ON",null,null,null,null,null,null,"ON"]
[null,24,null,"通知のしきい値","通知を行う頻度を設定します。\n1.一括通知を時間に応じて通知する。1時間～n日単位で設定できます。\n2.一括通知を件数ごとに通知します。\n3.個別に通知します","設定する番号及び通知する条件を記載します。\n例：1、および2時間ごと",null,"１及び 4時間ごと",null,null,null,null,null,null,"２　及び　2000件ごと"]
[null,25,null,"ユーザーに通知する","実行された処理の通知をユーザーに行うかを設定します。","OFF",null,"OFF",null,null,null,null,null,null,"OFF"]
[null,26,"ファイルブロック","ファイルブロックを有効にする","ファイルブロックを有効にするか設定します。","OFF",null,"ON",null,null,null,null,null,null,"ON"]
[null,27,null,"ルール"]
[null,28,null,"ファイルブロックの種類","ブロックするファイルタイプを設定します。以下から設定します。\n1.すべてのファイルをブロック\n2.特定のファイルをブロック ","1.すべてのファイルをブロック\n※1を選択する場合、必要に応じ以下29,29-1の設定を選択します。\n※2を選択する場合、以下30,30-1の設定を選択します。",null,1,null,null,null,null,null,null,2]
[null,29,null,"ブロックリスト","ブロックしないファイルタイプを指定します。以下から設定します。\n1.ブロックしないファイルタイプ\n2.ブロックしないファイル拡張子\n3.ブロックしないファイル名",null,null,2]
[null,"29-1",null,"ブロックしないファイルタイプの記入","29で選択した項目に沿ってファイルタイプや拡張子を記載します。","独自に設定する単語を記載",null,"txt,Log"]
[null,30,null,"ブロックリスト","ブロックするファイルタイプを指定します。以下から設定します。\n1.ブロックするファイルタイプ\n2.ブロックするファイル拡張子\n3.ブロックするファイル名",null,null,null,null,null,null,null,null,null,1]
[null,"30-1",null,"ブロックするファイルタイプの記入","30で選択した項目に沿ってファイルタイプや拡張子を記載します。","独自に設定する単語を記載",null,null,null,null,null,null,null,null,"エクセル、ワードファイル"]
[null,31,null,"処理"]
[null,32,null,"処理：","検出時の処理を設定します。","以下から設定を選択します。\n「隔離」 / 「削除」 / 「放置」 および 「通知」 / 「通知しない」",null,"放置　及び　通知しない",null,null,null,null,null,null,"放置　及び　通知しない"]
[null,33,null,"通知"]
[null,34,null,"管理者に通知する","実行された処理の通知を管理者に行うかを設定します。","ON",null,"OFF",null,null,null,null,null,null,"ON"]
[null,35,null,"通知のしきい値","通知を行う頻度を設定します。\n1.一括通知を時間に応じて通知する。1時間～n日単位で設定できます。\n2.一括通知を件数ごとに通知します。\n3.個別に通知します","設定する番号及び通知する条件を記載します。\n例：1、および2時間ごと",null,null,null,null,null,null,null,null,"２　及び　2000件ごと"]
[null,36,null,"ユーザーに通知する","実行された処理の通知をユーザーに行うかを設定します。","OFF",null,"OFF",null,null,null,null,null,null,"ON"]
[null,37,"Webレピュテーション","Webレピュテーションを有効にする","Webレピュテーションを有効にするか設定します。","OFF",null,"OFF",null,null,null,null,null,null,"ON"]
[null,38,null,"ルール"]
[null,39,null,"セキュリティレベル:","セキュリティレベルを設定します。以下から選択します。\n1.高 / より多くのWebからの脅威に適用されますが、誤検出のリスクも高くなります\n2.中 / 誤検出の件数を低く抑えながら、多くのWebからの脅威に適用されます\n3.低 / Webからの脅威の適用数は減少しますが、誤検出のリスクも低下します","2.中 / 誤検出の件数を低く抑えながら、多くのWebからの脅威に適用されます",null,2,null,null,null,null,null,null,1]
[null,40,null,"承認済み、ブロックするURLリスト"]
[null,41,null,"承認済みURLリストを有効にする","承認済みURLリストを有効にする設定をします。","OFF\n※有効にする場合、項番42,48を設定します。",null,"ON",null,null,null,null,null,null,"OFF"]
[null,42,null,"承認するURLリスト","承認するURLリストを設定します。","実際に承認するURLを記載",null,"*.Google.com"]
[null,43,null,"ブロックするURLリストを有効にする","ブロックするURLリストを有効にする設定をします。","OFF\n※有効にする場合、項番44を設定します。",null,"ON",null,null,null,null,null,null,"OFF"]
[null,44,null,"ブロックするURLリスト","ブロックするURLリストを設定します。","実際に承認するURLを記載",null,"*.yahoo.com"]
[null,45,null,"処理"]
[null,46,null,"処理：","検出時の処理を設定します。","以下から設定を選択します。\n「隔離」 / 「削除」 / 「放置」 および 「通知」 / 「通知しない」",null,"削除　及び　通知",null,null,null,null,null,null,"放置　及び　通知しない"]
[null,47,null,"トレンドマイクロのWebレピュテーションサービスで、未評価のURLに対して処理を実行する ","トレンドマイクロのWebレピュテーションサービスで、未評価のURLに対して処理を実行するかどうかを設定します","OFF",null,"ON",null,null,null,null,null,null,"OFF"]
[null,48,null,"ブロックするURLリスト:","ブロックするリストを設定し、検出した際の処理を設定します。","以下から設定を選択します。\n「隔離」 / 「削除」　および 「通知」 / 「通知しない」",null,"隔離　及び　通知",null,null,null,null,null,null,"削除　及び　通知しない"]
[null,49,null,"通知"]
[null,50,null,"管理者に通知する","実行された処理の通知を管理者に行うかを設定します。","ON",null,"ON",null,null,null,null,null,null,"ON"]
[null,51,null,"通知のしきい値","通知を行う頻度を設定します。\n1.一括通知を時間に応じて通知する。1時間～n日単位で設定できます。\n2.一括通知を件数ごとに通知します。\n3.個別に通知します","設定する番号及び通知する条件を記載します。\n例：1、および2時間ごと",null,"１及び 4時間ごと",null,null,null,null,null,null,"２　及び　2000件ごと"]
[null,52,null,"ユーザーに通知する","実行された処理の通知をユーザーに行うかを設定します。","OFF",null,"OFF",null,null,null,null,null,null,"ON"]
[null,53,"仮想アナライザ","仮想アナライザを有効にする ","仮想アナライザを有効にするか設定します。","OFF",null,"ON",null,null,null,null,null,null,"ON"]
[null,54,null,"監視およびログのみ (監視モード)","監視およびログのみ (監視モード)のモードに切り替えるか設定します。有効の場合、設定した処理は実行されません。","OFF",null,"OFF",null,null,null,null,null,null,"ON"]
[null,55,null,"ルール"]
[null,56,null,"次を分析:","分析する対象を設定します。以下から選択できます。\n1.ファイル \n2.URL","1.ON\n2.OFF\n※2を有効にする場合、Webレピュテーションを有効にする必要があります。",null,"ON",null,null,null,null,null,null,"OFF"]
[null,57,null,"処理"]
[null,"58-1",null,"処理：","リスク高検出時の処理を設定します。6項目から設定できます。","01.リスク高 / 隔離 および 通知\n02.リスク高 / 隔離 および 通知しない\n03.リスク高 / 削除 および 通知\n04.リスク高 / 削除 および 通知しない\n05.リスク高 / 放置 および 通知\n06.リスク高 / 放置 および 通知しない",null,"01.リスク高 / 隔離 および 通知"]
[null,"58-2",null,"処理：","リスク中検出時の処理を設定します。6項目から設定できます。","07.リスク中 / 隔離 および 通知\n08.リスク中 / 隔離 および 通知しない\n09.リスク中 / 削除 および 通知\n10.リスク中 / 削除 および 通知しない\n11.リスク中 / 放置 および 通知\n12.リスク中 / 放置 および 通知しない",null,"07.リスク中 / 隔離 および 通知"]
[null,"58-3",null,"処理：","リスク低検出時の処理を設定します。6項目から設定できます。","13.リスク低 / 隔離 および 通知\n14.リスク低 / 隔離 および 通知しない\n15.リスク低 / 削除 および 通知\n16.リスク低 / 削除 および 通知しない\n17.リスク低 / 放置 および 通知\n18.リスク低 / 放置 および 通知しない",null,"18.リスク低 / 放置 および 通知しない"]
[null,"58-4",null,"処理：","未評価検出時の処理を設定します。6項目から設定できます。","19.未評価  / 隔離 および 通知\n20.未評価  / 隔離 および 通知しない\n21.未評価  / 削除 および 通知\n22.未評価  / 削除 および 通知しない\n23.未評価  / 放置 および 通知\n24.未評価  / 放置 および 通知しない",null,"23.未評価  / 放置 および 通知"]
[null,59,null,"通知"]
[null,60,null,"管理者に通知する","実行された処理の通知を管理者に行うかを設定します。","ON",null,"ON"]
[null,61,null,"通知のしきい値","通知を行う頻度を設定します。\n1.一括通知を時間に応じて通知する。1時間～n日単位で設定できます。\n2.一括通知を件数ごとに通知します。\n3.個別に通知します","設定する番号及び通知する条件を記載します。\n例：1、および2時間ごと",null,"１及び 4時間ごと"]
[null,62,null,"ユーザーに通知する","実行された処理の通知をユーザーに行うかを設定します。","OFF",null,"OFF",null,null,null,null,null,null,"OFF"]
[null,63,"高度なスパムメール対策\n※Exchage Online及び\nGmailのみ対象となります","高度なスパムメール対策を有効にする","高度なスパムメール対策を有効にするか設定します。","OFF",null,"ON"]
[null,64,null,"検出機能向上のため不審メール情報をトレンドマイクロに送信する ","検出機能向上のため不審メール情報をトレンドマイクロに送信するかを設定します。","OFF",null,"ON"]
[null,65,null,"ルール"]
[null,66,null,"適用：","ポリシー設定を反映させるメッセージの範囲を設定します。以下より選択します。\n1,受信メッセージ\n2,すべてのメッセージ","1,受信メッセージ",null,2]
[null,67,null,"検出レベル:","スパムメールに対する検知度数を設定します。高いほど検知率は上がりますが、誤検知も多くなります。以下より選択します。\n1,高 / スパムメールの検出率が最も高くなりますが、誤検出の可能性も高くなります。\n2,中 / スパムメールの検出率が高く、誤検出の可能性は中程度です。\n3,低 / スパムメールとして明白なものが検出され、誤検出の可能性が最も低くなります。","2,中 / スパムメールの検出率が高く、誤検出の可能性は中程度です。",null,1]
[null,68,null,"表示名のスプーフィング検知:","企業内で使用している表示名と似た表示名を持つ外部送信者からのメッセージを分析するかを設定します。","OFF",null,"ON"]
[null,69,null,"グレーメール検出"]
[null,70,null,"グレーメール検出を有効にする ","グレーメール検出を有効にするかを設定します。項番71～74を設定する場合、有効にする必要があります。","ON",null,"ON"]
[null,71,null,"マーケティングメッセージとニュースレター ","マーケティングメッセージとニュースレターの検出を有効にするか設定します。","ON",null,"OFF"]
[null,72,null,"ソーシャルネットワーク通知 ","ソーシャルネットワーク通知を有効にするか設定します。","OFF",null,"OFF"]
[null,73,null,"フォーラム通知 ","フォーラム通知を有効にするか設定します。","OFF",null,"OFF"]
[null,74,null,"バルクメール ","バルクメールの検出を有効にするか設定します。","ON",null,"OFF"]
[null,75,null,"ライティングスタイル分析によるBEC検出"]
[null,76,null,"ライティングスタイル分析を有効にする","ライティングスタイル分析を有効にするかを設定します。有効にした場合、項番77～を設定します。","OFF",null,"ON"]
[null,77,null,"処理:","検出したメールに対する処理を設定します。以下から選択します。\n1,メールにラベル付け\n2,削除\n3,スパムメールに移動\n4,放置","1,メールにラベル付け",null,1]
[null,78,null,"偽装された可能性のある送信者に通知する ","偽装された可能性のある送信者に通知するかを設定します。","OFF",null,"OFF"]
[null,79,null,"元のメールメッセージを添付する ","元のメールメッセージを添付するかを設定します。","OFF",null,"ON"]
[null,80,null,"フィードバックの送信を許可する ","フィードバックの送信を許可するかを設定します。","OFF",null,"ON"]
[null,81,null,"管理者に通知する","管理者に通知するかを設定します。","OFF",null,"OFF"]
[null,82,null,"元のメールメッセージを添付する ","管理者に通知する際に元のメールメッセージを添付するかを設定します。","OFF",null,"OFF"]
[null,83,null,"承認済み、ブロックする送信者リスト"]
[null,84,null,"承認済み送信者リストを有効にする ","承認済み送信者リストを有効にするかを設定します。","OFF",null,"OFF"]
[null,85,null,"承認済み送信者リスト","承認する送信者のメールアドレスを指定します。ワイルドカード(*)を利用することでドメインでの一括指定も行えます。","承認する送信者のメールアドレスを記載します。"]
[null,86,null,"ブロックする送信者リストを有効にする ","ブロックする送信者リストを有効にするかを設定します。","OFF",null,"OFF"]
[null,87,null,"ブロックする送信者リスト","ブロックする送信者のメールアドレスを指定します。ワイルドカード(*)を利用することでドメインでの一括指定も行えます。","ブロックする送信者のメールアドレスを記載します。"]
[null,88,null,"処理"]
[null,89,null,"グレーメール:","グレーメールに対する処理を設定します。以下から選択します。\n削除 / メールにラベル付け / スパムメールへ移動 / 放置　及び　通知 / 通知しない","放置　及び　通知しない",null,"放置　及び　通知しない"]
[null,90,null,"詐欺サイト:","詐欺サイトに対する処理を設定します。以下から選択します。\n削除 / メールにラベル付け / スパムメールへ移動 / 放置　及び　通知 / 通知しない","放置　及び　通知",null,"スパムメールへ移動 及び　通知"]
[null,91,null,"BEC: ","BECに対する処理を設定します。以下から選択します。\n削除 / メールにラベル付け / スパムメールへ移動 / 放置　及び　通知 / 通知しない","放置　及び　通知",null,"放置　及び　通知しない"]
[null,92,null,"フィッシング:","フィッシングに対する処理を設定します。以下から選択します。\n削除 / メールにラベル付け / スパムメールへ移動 / 放置　及び　通知 / 通知しない","放置　及び　通知",null,"スパムメールへ移動 及び　通知しない"]
[null,93,null,"ランサムウェア:","ランサムウェアに対する処理を設定します。以下から選択します。\n削除 / メールにラベル付け / スパムメールへ移動 / 放置　及び　通知 / 通知しない","放置　及び　通知",null,"スパムメールへ移動 及び　通知"]
[null,94,null,"不正なスパムメール:","不正なスパムメールに対する処理を設定します。以下から選択します。\n削除 / メールにラベル付け / スパムメールへ移動 / 放置　及び　通知 / 通知しない","放置　及び　通知",null,"スパムメールへ移動 及び　通知しない"]
[null,95,null,"その他のスパムメール","その他のスパムメールに対する処理を設定します。以下から選択します。\n削除 / メールにラベル付け / スパムメールへ移動 / 放置　及び　通知 / 通知しない","メールにラベル付け　及び　通知",null,"スパムメールへ移動 及び　通知しない"]
[null,"95-1",null,"その他のスパムメール（オプション）","内部ドメインから送信されたメッセージが、その他のスパムメールとして検出された場合は放置するオプションを設定できます。","オプション：ON",null,"OFF"]
[null,96,null,"ブロックする送信者リスト:","ブロックする送信者リストに対する処理を設定します。以下から選択します。\n削除 / メールにラベル付け / スパムメールへ移動　及び　通知 / 通知しない","メールにラベル付け　及び　通知しない"]
[null,97,null,"通知"]
[null,98,null,"管理者に通知する","実行された処理の通知を管理者に行うかを設定します。","ON",null,"ON"]
[null,99,null,"通知のしきい値","通知を行う頻度を設定します。\n1.一括通知を時間に応じて通知する。1時間～n日単位で設定できます。\n2.一括通知を件数ごとに通知します。\n3.個別に通知します","設定する番号及び通知する条件を記載します。\n例：1、および2時間ごと",null,"１及び 4時間ごと"]
[null,100,null,"ユーザーに通知する","実行された処理の通知をユーザーに行うかを設定します。","OFF",null,"OFF"]
[null,101]

{"sheet":"情報漏えい対策","index":3,"n_rows":295,"n_cols":15,"rows_kept":295,"cut":false,"hidden":false,"merged":[[6,9,6,11],[15,9,15,11],[273,2,283,2],[284,2,294,2],[6,7,6,8],[15,7,15,8],[17,2,20,2],[21,2,272,2]]}
[]
[null,"【シート1】アプリケーションコントロール詳細設定"]
[null,"設定したい情報漏えい対策を変更クラウドアプリ項目欄に説明やデフォルト設定等欄を参考に入力ください。"]
[null,null,"※カテゴリグループすべての設定を推奨設定に変更したい場合は、【カテゴリごとに一括設定】に記入してください。"]
[null,null,"※カテゴリグループの設定ごとに独自設定を設定したい場合は、【カテゴリ配下ジャンルごとの設定】に記入してください。"]
[]
[null,"【カテゴリごとに一括設定(推奨設定)】",null,null,null,null,null,"変更クラウドアプリを選択",null,"※水色で塗りつぶされているセルはプルダウンから選択",null,null,null,null,"※シート①-1にて、該当項目にチェックを入れてから設定してください↓"]
[null,"項番","カテゴリ",null,null,"デフォルト設定",null,"Exchange","OneDrive","SharePoint","Teams","Gmail","Google ドライブ","DropBox","Box"]
[null,"Ａ","一般",null,null,"OFF"]
[null,"Ｂ","情報漏えい対策",null,null,"OFF"]
[null,"Ｃ","キーワード検出","Boxのみが対象となります。",null,"OFF"]
[null,"Ｄ","共有リンク制御","Boxの共有リンク制御ポリシーのみが対象になります",null,"OFF"]
[null,"Ｅ"]
[null,"Ｆ"]
[]
[null,"【カテゴリ配下情報漏えい対策ごとの設定】",null,null,null,null,null,"変更クラウドアプリを選択",null,"※水色で塗りつぶされているセルはプルダウンから選択",null,null,null,null,"※シート①-1にて、該当項目にチェックを入れてから設定してください↓"]
[null,"項番","カテゴリ","項目","説明","デフォルト設定等",null,"Exchange Online","OneDrive","SharePoint Online","Teams","Gmail","Google ドライブ","DropBox","Box"]
[null,1,"一般","リアルタイム検索を有効にする","リアルタイム検索を有効にするかを設定します。","OFF"]
[null,2,null,"ポリシー名","実行された際に表示されるポリシー名です。","初期設定の○○○ポリシー - 情報漏えい対策"]
[null,null,null,"概要","ポリシー名の概要が記載されます"]
[null,3,null,"優先度","ポリシーの優先度が数字で表されます。数字が小さいほど優先度が高く、デフォルトで値が入っています。","1or2"]
[null,4,"情報漏えい対策","情報漏えい対策を有効にする ","情報漏えい対策を有効にするかを設定します。","OFF"]
[null,5,null,"機密データを含むログ内の違反コンテンツを表示する","機密データを含むログ内の違反コンテンツを表示するかを設定ます。","OFF"]
[null,"5-1",null,"機密データを含むログ内の違反コンテンツを表示する際のデータのマスク設定","データのマスク設定を以下から決定します。\n1,機密データをマスクする\n2,機密データをマスクしない",2]
[null,6,null,"コンプライアンスルール"]
[null,7,null,"アダルト","アダルトサイトからのメールやそれに関連するファイルを検出するように設定します。以下より選択します。\n放置 / 削除 / 隔離 / メールにラベル付け / ブロック","OFF【設定推奨】"]
[null,8,null,"アルバニア: IBAN (国際銀行勘定番号)","アルバニアの IBAN (国際銀行勘定番号)を検出するよう設定します。以下より選択します。\n放置 / 削除 / 隔離 / メールにラベル付け / ブロック","OFF"]
[null,9,null,"すべてのファイル拡張子","すべてのファイル拡張子を検出するよう設定します。以下より選択します。\n放置 / 削除 / 隔離 / メールにラベル付け / ブロック","OFF【設定推奨】"]
[null,10,null,"すべての個人情報 (英語)","すべての個人情報 (英語)を検出するよう設定します。以下より選択します。\n放置 / 削除 / 隔離 / メールにラベル付け / ブロック","OFF"]
[null,11,null,"すべて: クレジットカード番号","すべてのクレジットカード番号を検出するよう設定します。以下より選択します。\n放置 / 削除 / 隔離 / メールにラベル付け / ブロック","OFF【設定推奨】"]
[null,12,null,"すべて: IBAN (国際銀行勘定番号)","すべてのIBAN (国際銀行勘定番号)を検出するよう設定します。以下より選択します。\n放置 / 削除 / 隔離 / メールにラベル付け / ブロック","OFF【設定推奨】"]
[null,13,null,"すべて: IIN (発行者識別番号)","すべてのIIN (発行者識別番号)を検出するよう設定します。以下より選択します。\n放置 / 削除 / 隔離 / メールにラベル付け / ブロック","OFF【設定推奨】"]
[null,14,null,"すべて: IMEI (国際移動体装置識別番号)","すべてのIMEI (国際移動体装置識別番号)を検出するよう設定します。以下より選択します。\n放置 / 削除 / 隔離 / メールにラベル付け / ブロック","OFF"]
[null,15,null,"すべて: 米国勢調査局発行の名前","すべての米国勢調査局発行の名前を検出するよう設定します。以下より選択します。\n放置 / 削除 / 隔離 / メールにラベル付け / ブロック","OFF"]
[null,16,null,"すべて: SWIFT BIC (SWIFT金融機関識別コード)","すべてのSWIFT BIC (SWIFT金融機関識別コード)を検出するよう設定します。以下より選択します。\n放置 / 削除 / 隔離 / メールにラベル付け / ブロック","OFF【設定推奨】"]
[null,17,null,"すべて: タイムゾーンオフセット","すべてのタイムゾーンオフセットを検出するよう設定します。以下より選択します。\n放置 / 削除 / 隔離 / メールにラベル付け / ブロック","OFF"]
[null,18,null,"アンドラ: IBAN (国際銀行勘定番号)","アンドラのIBAN (国際銀行勘定番号)を検出するよう設定します。以下より選択します。\n放置 / 削除 / 隔離 / メールにラベル付け / ブロック","OFF"]
[null,19,null,"オーストラリア、ニュージーランド: 銀行および財務情報","オーストラリア、ニュージーランドの銀行および財務情報を検出するよう設定します。以下より選択します。\n放置 / 削除 / 隔離 / メールにラベル付け / ブロック","OFF"]
[null,20,null,"オーストラリア、ニュージーランド: クレジットカード名義人情報","オーストラリア、ニュージーランドのクレジットカード名義人情報を検出するよう設定します。以下より選択します。\n放置 / 削除 / 隔離 / メールにラベル付け / ブロック","OFF"]
[null,21,null,"オーストラリア、ニュージーランド: 医療情報","オーストラリア、ニュージーランドの医療情報を検出するよう設定します。以下より選択します。\n放置 / 削除 / 隔離 / メールにラベル付け / ブロック","OFF"]
[null,22,null,"オーストラリア、ニュージーランド: 個人情報","オーストラリア、ニュージーランドの個人情報を検出するよう設定します。以下より選択します。\n放置 / 削除 / 隔離 / メールにラベル付け / ブロック","OFF"]
[null,23,null,"オーストラリア: TFN (納税ファイル番号)","オーストラリアのTFN (納税ファイル番号)を検出するよう設定します。以下より選択します。\n放置 / 削除 / 隔離 / メールにラベル付け / ブロック","OFF"]
[null,24,null,"オーストリア: IBAN (国際銀行勘定番号)","オーストリアのIBAN (国際銀行勘定番号)を検出するよう設定します。以下より選択します。\n放置 / 削除 / 隔離 / メールにラベル付け / ブロック","OFF"]
[null,25,null,"オーストリア: SSN - Sozialversicherungsnummer (社会保障番号)","オーストリアのSSN - (社会保障番号)を検出するよう設定します。以下より選択します。\n放置 / 削除 / 隔離 / メールにラベル付け / ブロック","OFF"]
[null,26,null,"アゼルバイジャン: IBAN (国際銀行勘定番号)","アゼルバイジャンのIBAN (国際銀行勘定番号)を検出するよう設定します。以下より選択します。\n放置 / 削除 / 隔離 / メールにラベル付け / ブロック","OFF"]
[null,27,null,"バーレーン: IBAN (国際銀行勘定番号)","バーレーンのIBAN (国際銀行勘定番号)を検出するよう設定します。以下より選択します。\n放置 / 削除 / 隔離 / メールにラベル付け / ブロック","OFF"]
[null,28,null,"銀行および財務情報","銀行および財務情報を検出するよう設定します。以下より選択します。\n放置 / 削除 / 隔離 / メールにラベル付け / ブロック","OFF【設定推奨】"]
[null,29,null,"ベルギー: IBAN (国際銀行勘定番号)","ベルギーのIBAN (国際銀行勘定番号)を検出するよう設定します。以下より選択します。\n放置 / 削除 / 隔離 / メールにラベル付け / ブロック","OFF"]
[null,30,null,"ベルギー: 国民登録番号","ベルギーの国民登録番号を検出するよう設定します。以下より選択します。\n放置 / 削除 / 隔離 / メールにラベル付け / ブロック","OFF"]
[null,31,null,"ボスニア・ヘルツェゴビナ: IBAN (国際銀行勘定番号)","ボスニア・ヘルツェゴビナのIBAN (国際銀行勘定番号)を検出するよう設定します。以下より選択します。\n放置 / 削除 / 隔離 / メールにラベル付け / ブロック","OFF"]
[null,32,null,"ボスニア・ヘルツェゴビナ: JMBG - Jedinstveni matični broj građana (個別マスター住民番号 (Unique Master Citizen Number))","ボスニア・ヘルツェゴビナのJMBG(個別マスター住民番号)を検出するよう設定します。以下より選択します。\n放置 / 削除 / 隔離 / メールにラベル付け / ブロック","OFF"]
[null,33,null,"ブラジル: CNPJ - Cadastro Nacional da Pessoa Jurídica (法人登録番号)","ブラジルのCNPJ - (法人登録番号)を検出するよう設定します。以下より選択します。\n放置 / 削除 / 隔離 / メールにラベル付け / ブロック","OFF"]
[null,34,null,"ブラジル: CPF - Cadastro de Pessoas Físicas (納税者番号 (Natural Persons Register))","ブラジルのCPF - (納税者番号 (Natural Persons Register))を検出するよう設定します。以下より選択します。\n放置 / 削除 / 隔離 / メールにラベル付け / ブロック","OFF"]
[null,35,null,"英領ヴァージン諸島: IBAN (国際銀行勘定番号)","英領ヴァージン諸島のIBAN (国際銀行勘定番号)を検出するよう設定します。以下より選択します。\n放置 / 削除 / 隔離 / メールにラベル付け / ブロック","OFF"]
[null,36,null,"ブルガリア: EGN - Edinen Grashdanski Nomer (納税者番号 (Uniform Civil Number))","ブルガリアのEGN - (納税者番号 (Uniform Civil Number))を検出するよう設定します。以下より選択します。\n放置 / 削除 / 隔離 / メールにラベル付け / ブロック","OFF"]
[null,37,null,"ブルガリア: IBAN (国際銀行勘定番号)","ブルガリアのIBAN (国際銀行勘定番号)を検出するよう設定します。以下より選択します。\n放置 / 削除 / 隔離 / メールにラベル付け / ブロック","OFF"]
[null,38,null,"カナダ: 銀行および財務情報","カナダの銀行および財務情報を検出するよう設定します。以下より選択します。\n放置 / 削除 / 隔離 / メールにラベル付け / ブロック","OFF"]
[null,39,null,"カナダ: クレジットカード名義人情報","カナダのクレジットカード名義人情報を検出するよう設定します。以下より選択します。\n放置 / 削除 / 隔離 / メールにラベル付け / ブロック","OFF"]
[null,40,null,"カナダ: 医療情報","カナダの医療情報を検出するよう設定します。以下より選択します。\n放置 / 削除 / 隔離 / メールにラベル付け / ブロック","OFF"]
[null,41,null,"カナダ: 個人情報","カナダの個人情報を検出するよう設定します。以下より選択します。\n放置 / 削除 / 隔離 / メールにラベル付け / ブロック","OFF"]
[null,42,null,"カナダ: RAMQ - Régie de l'assurance maladie du Québec (ケベック州健康保険番号)","カナダのRAMQ -(ケベック州健康保険番号)を検出するよう設定します。以下より選択します。\n放置 / 削除 / 隔離 / メールにラベル付け / ブロック","OFF"]
[null,43,null,"カナダ: SIN (社会保険番号)","カナダのSIN (社会保険番号)を検出するよう設定します。以下より選択します。\n放置 / 削除 / 隔離 / メールにラベル付け / ブロック","OFF"]
[null,44,null,"クレジットカード名義人情報","クレジットカード名義人情報を検出するよう設定します。以下より選択します。\n放置 / 削除 / 隔離 / メールにラベル付け / ブロック","OFF"]
[null,45,null,"中国: 銀行口座番号","中国の銀行口座番号を検出するよう設定します。以下より選択します。\n放置 / 削除 / 隔離 / メールにラベル付け / ブロック","OFF"]
[null,46,null,"中国: 銀行取引と財務情報","中国の銀行取引と財務情報を検出するよう設定します。以下より選択します。\n放置 / 削除 / 隔離 / メールにラベル付け / ブロック","OFF"]
[null,47,null,"中国: クレジットカード名義人情報","中国のクレジットカード名義人情報を検出するよう設定します。以下より選択します。\n放置 / 削除 / 隔離 / メールにラベル付け / ブロック","OFF"]
[null,48,null,"中国: 携帯電話番号","中国の携帯電話番号を検出するよう設定します。以下より選択します。\n放置 / 削除 / 隔離 / メールにラベル付け / ブロック","OFF"]
[null,49,null,"中国: 国民ID番号","中国の国民ID番号を検出するよう設定します。以下より選択します。\n放置 / 削除 / 隔離 / メールにラベル付け / ブロック","OFF"]
[null,50,null,"中国: 個人情報","中国の個人情報を検出するよう設定します。以下より選択します。\n放置 / 削除 / 隔離 / メールにラベル付け / ブロック","OFF"]
[null,51,null,"中国: 電話番号","中国の電話番号を検出するよう設定します。以下より選択します。\n放置 / 削除 / 隔離 / メールにラベル付け / ブロック","OFF"]
[null,52,null,"中国: 銀聯 (UnionPay) カード番号","中国の銀聯 (UnionPay) カード番号を検出するよう設定します。以下より選択します。\n放置 / 削除 / 隔離 / メールにラベル付け / ブロック","OFF"]
[null,53,null,"一般的な医学用語","一般的な医学用語を検出するよう設定します。以下より選択します。\n放置 / 削除 / 隔離 / メールにラベル付け / ブロック","OFF"]
[null,54,null,"連絡先/顧客/クライアントリスト (英語)","連絡先/顧客/クライアントリスト (英語)を検出するよう設定します。以下より選択します。\n放置 / 削除 / 隔離 / メールにラベル付け / ブロック","OFF"]
[null,55,null,"コスタリカ: IBAN (国際銀行勘定番号)","コスタリカのIBAN (国際銀行勘定番号)を検出するよう設定します。以下より選択します。\n放置 / 削除 / 隔離 / メールにラベル付け / ブロック","OFF"]
[null,56,null,"クロアチア: IBAN (国際銀行勘定番号)","クロアチアのIBAN (国際銀行勘定番号)を検出するよう設定します。以下より選択します。\n放置 / 削除 / 隔離 / メールにラベル付け / ブロック","OFF"]
[null,57,null,"クロアチア: OIB - Osobni identifikacijski broj (個人ID番号)","クロアチアのOIB -(個人ID番号)を検出するよう設定します。以下より選択します。\n放置 / 削除 / 隔離 / メールにラベル付け / ブロック","OFF"]
[null,58,null,"クロアチア: (個別マスター住民番号 (Unique Master Citizen Number)","クロアチアの(個別マスター住民番号 (Unique Master Citizen Number)を検出するよう設定します。以下より選択します。\n放置 / 削除 / 隔離 / メールにラベル付け / ブロック","OFF"]
[null,59,null,"キプロス: IBAN (国際銀行勘定番号)","キプロスのIBAN (国際銀行勘定番号)を検出するよう設定します。以下より選択します。\n放置 / 削除 / 隔離 / メールにラベル付け / ブロック","OFF"]
[null,60,null,"チェコ共和国: IBAN (国際銀行勘定番号)","チェコ共和国のIBAN (国際銀行勘定番号)を検出するよう設定します。以下より選択します。\n放置 / 削除 / 隔離 / メールにラベル付け / ブロック","OFF"]
[null,61,null,"チェコ共和国: RC - Rodne Cislo (出生番号)","チェコ共和国のRC - Rodne Cislo (出生番号)を検出するよう設定します。以下より選択します。\n放置 / 削除 / 隔離 / メールにラベル付け / ブロック","OFF"]
[null,62,null,"デンマーク: 銀行および財務情報","デンマークの銀行および財務情報を検出するよう設定します。以下より選択します。\n放置 / 削除 / 隔離 / メールにラベル付け / ブロック","OFF"]
[null,63,null,"デンマーク: クレジットカード名義人情報","デンマークのクレジットカード名義人情報を検出するよう設定します。以下より選択します。\n放置 / 削除 / 隔離 / メールにラベル付け / ブロック","OFF"]
[null,64,null,"デンマーク: CPR-nummer (個人ID番号)","デンマークのCPR-nummer (個人ID番号)を検出するよう設定します。以下より選択します。\n放置 / 削除 / 隔離 / メールにラベル付け / ブロック","OFF"]
[null,65,null,"デンマーク: IBAN (国際銀行勘定番号)","デンマークのIBAN (国際銀行勘定番号)を検出するよう設定します。以下より選択します。\n放置 / 削除 / 隔離 / メールにラベル付け / ブロック","OFF"]
[null,66,null,"デンマーク: 個人情報","デンマークの個人情報を検出するよう設定します。以下より選択します。\n放置 / 削除 / 隔離 / メールにラベル付け / ブロック","OFF"]
[null,67,null,"ドミニカ共和国: CIE - Cédula de Identidad y Electoral (個人ID番号)","ドミニカ共和国のCIE - (個人ID番号)を検出するよう設定します。以下より選択します。\n放置 / 削除 / 隔離 / メールにラベル付け / ブロック","OFF"]
[null,68,null,"ドミニカ共和国: IBAN (国際銀行勘定番号)","ドミニカ共和国のIBAN (国際銀行勘定番号)を検出するよう設定します。以下より選択します。\n放置 / 削除 / 隔離 / メールにラベル付け / ブロック","OFF"]
[null,69,null,"エストニア: IBAN (国際銀行勘定番号)","エストニアのIBAN (国際銀行勘定番号)を検出するよう設定します。以下より選択します。\n放置 / 削除 / 隔離 / メールにラベル付け / ブロック","OFF"]
[null,70,null,"エストニア: IK - Isikukood (個人識別コード)","エストニアのIK - (個人識別コード)を検出するよう設定します。以下より選択します。\n放置 / 削除 / 隔離 / メールにラベル付け / ブロック","OFF"]
[null,71,null,"欧州連合: 銀行および財務情報","欧州連合の銀行および財務情報を検出するよう設定します。以下より選択します。\n放置 / 削除 / 隔離 / メールにラベル付け / ブロック","OFF"]
[null,72,null,"欧州連合: IBAN (国際銀行勘定番号)","欧州連合のIBAN (国際銀行勘定番号)を検出するよう設定します。以下より選択します。\n放置 / 削除 / 隔離 / メールにラベル付け / ブロック","OFF"]
[null,73,null,"欧州連合: 識別番号","欧州連合の識別番号を検出するよう設定します。以下より選択します。\n放置 / 削除 / 隔離 / メールにラベル付け / ブロック","OFF"]
[null,74,null,"欧州連合:個人情報","欧州連合の個人情報を検出するよう設定します。以下より選択します。\n放置 / 削除 / 隔離 / メールにラベル付け / ブロック","OFF"]
[null,75,null,"欧州連合:電話番号","欧州連合の電話番号を検出するよう設定します。以下より選択します。\n放置 / 削除 / 隔離 / メールにラベル付け / ブロック","OFF"]
[null,76,null,"金融取引情報","金融取引情報を検出するよう設定します。以下より選択します。\n放置 / 削除 / 隔離 / メールにラベル付け / ブロック","OFF【設定推奨】"]
[null,77,null,"フィンランド: HETU - Henkilötunnus (個人識別コード)","フィンランドのHETU - (個人識別コード)を検出するよう設定します。以下より選択します。\n放置 / 削除 / 隔離 / メールにラベル付け / ブロック","OFF"]
[null,78,null,"フィンランド: IBAN (国際銀行勘定番号)","フィンランドのIBAN (国際銀行勘定番号)を検出するよう設定します。以下より選択します。\n放置 / 削除 / 隔離 / メールにラベル付け / ブロック","OFF"]
[null,79,null,"フランス: 銀行および財務情報","フランスの銀行および財務情報を検出するよう設定します。以下より選択します。\n放置 / 削除 / 隔離 / メールにラベル付け / ブロック","OFF"]
[null,80,null,"フランス: クレジットカード名義人情報","フランスのクレジットカード名義人情報を検出するよう設定します。以下より選択します。\n放置 / 削除 / 隔離 / メールにラベル付け / ブロック","OFF"]
[null,81,null,"フランス: IBAN (国際銀行勘定番号)","フランスのIBAN (国際銀行勘定番号)を検出するよう設定します。以下より選択します。\n放置 / 削除 / 隔離 / メールにラベル付け / ブロック","OFF"]
[null,82,null,"フランス: Les Codes INSEE - Institut National de la Statistique et des Études Économiques (INSEEコード)","フランスのLes Codes INSEE - (INSEEコード)を検出するよう設定します。以下より選択します。\n放置 / 削除 / 隔離 / メールにラベル付け / ブロック","OFF"]
[null,83,null,"フランス: NIR - Numéro d'Inscription au Repertoire (社会保障番号)","フランスのNIR - (社会保障番号)を検出するよう設定します。以下より選択します。\n放置 / 削除 / 隔離 / メールにラベル付け / ブロック","OFF"]
[null,84,null,"フランス: 個人情報","フランスの個人情報を検出するよう設定します。以下より選択します。\n放置 / 削除 / 隔離 / メールにラベル付け / ブロック","OFF"]
[null,85,null,"ジョージア: IBAN (国際銀行勘定番号)","ジョージアのIBAN (国際銀行勘定番号)を検出するよう設定します。以下より選択します。\n放置 / 削除 / 隔離 / メールにラベル付け / ブロック","OFF"]
[null,86,null,"ドイツ: 銀行および財務情報","ドイツの銀行および財務情報を検出するよう設定します。以下より選択します。\n放置 / 削除 / 隔離 / メールにラベル付け / ブロック","OFF"]
[null,87,null,"ドイツ: IBAN (国際銀行勘定番号)","ドイツのIBAN (国際銀行勘定番号)を検出するよう設定します。以下より選択します。\n放置 / 削除 / 隔離 / メールにラベル付け / ブロック","OFF"]
[null,88,null,"ドイツ: 電話番号","ドイツの電話番号を検出するよう設定します。以下より選択します。\n放置 / 削除 / 隔離 / メールにラベル付け / ブロック","OFF"]
[null,89,null,"ドイツ: SN - Steuernummer (納税者番号)","ドイツのSN - (納税者番号)を検出するよう設定します。以下より選択します。\n放置 / 削除 / 隔離 / メールにラベル付け / ブロック","OFF"]
[null,90,null,"ジブラルタル: IBAN (国際銀行勘定番号)","ジブラルタルのIBAN (国際銀行勘定番号)を検出するよう設定します。以下より選択します。\n放置 / 削除 / 隔離 / メールにラベル付け / ブロック","OFF"]
[null,91,null,"ギリシャ: IBAN (国際銀行勘定番号)","ギリシャのIBAN (国際銀行勘定番号)を検出するよう設定します。以下より選択します。\n放置 / 削除 / 隔離 / メールにラベル付け / ブロック","OFF"]
[null,92,null,"グリーンランド: IBAN (国際銀行勘定番号)","グリーンランドのIBAN (国際銀行勘定番号)を検出するよう設定します。以下より選択します。\n放置 / 削除 / 隔離 / メールにラベル付け / ブロック","OFF"]
[null,93,null,"グアテマラ: IBAN (国際銀行勘定番号)","グアテマラのIBAN (国際銀行勘定番号)を検出するよう設定します。以下より選択します。\n放置 / 削除 / 隔離 / メールにラベル付け / ブロック","OFF"]
[null,94,null,"医療情報","医療情報を検出するよう設定します。以下より選択します。\n放置 / 削除 / 隔離 / メールにラベル付け / ブロック","OFF"]
[null,95,null,"香港: 識別カード番号","香港の識別カード番号を検出するよう設定します。以下より選択します。\n放置 / 削除 / 隔離 / メールにラベル付け / ブロック","OFF"]
[null,96,null,"ハンガリー: IBAN (国際銀行勘定番号)","ハンガリーのIBAN (国際銀行勘定番号)を検出するよう設定します。以下より選択します。\n放置 / 削除 / 隔離 / メールにラベル付け / ブロック","OFF"]
[null,97,null,"ハンガリー: Szemelyi Szam (個人ID番号)","ハンガリーのSzemelyi Szam (個人ID番号)を検出するよう設定します。以下より選択します。\n放置 / 削除 / 隔離 / メールにラベル付け / ブロック","OFF"]
[null,98,null,"アイスランド: IBAN (国際銀行勘定番号)","アイスランドのIBAN (国際銀行勘定番号)を検出するよう設定します。以下より選択します。\n放置 / 削除 / 隔離 / メールにラベル付け / ブロック","OFF"]
[null,99,null,"インド: Aadhaar (固有識別番号)","インドのAadhaar (固有識別番号)を検出するよう設定します。以下より選択します。\n放置 / 削除 / 隔離 / メールにラベル付け / ブロック","OFF"]
[null,100,null,"インド: 銀行および財務情報","インドの銀行および財務情報を検出するよう設定します。以下より選択します。\n放置 / 削除 / 隔離 / メールにラベル付け / ブロック","OFF"]
[null,101,null,"インド: クレジットカード名義人情報","インドのクレジットカード名義人情報を検出するよう設定します。以下より選択します。\n放置 / 削除 / 隔離 / メールにラベル付け / ブロック","OFF"]
[null,102,null,"インド: 医療情報","インドの医療情報を検出するよう設定します。以下より選択します。\n放置 / 削除 / 隔離 / メールにラベル付け / ブロック","OFF"]
[null,103,null,"インド: 携帯番号","インドの携帯番号を検出するよう設定します。以下より選択します。\n放置 / 削除 / 隔離 / メールにラベル付け / ブロック","OFF"]
[null,104,null,"インド: PAN - 納税者番号 (Permanent Account Number)","インドのPAN - 納税者番号 (Permanent Account Number)を検出するよう設定します。以下より選択します。\n放置 / 削除 / 隔離 / メールにラベル付け / ブロック","OFF"]
[null,105,null,"インド: パスポート番号","インドのパスポート番号を検出するよう設定します。以下より選択します。\n放置 / 削除 / 隔離 / メールにラベル付け / ブロック","OFF"]
[null,106,null,"インド: 個人情報","インドの個人情報を検出するよう設定します。以下より選択します。\n放置 / 削除 / 隔離 / メールにラベル付け / ブロック","OFF"]
[null,107,null,"インド: 電話番号","インドの電話番号を検出するよう設定します。以下より選択します。\n放置 / 削除 / 隔離 / メールにラベル付け / ブロック","OFF"]
[null,108,null,"インド: PIN - 郵便番号","インドのPIN - 郵便番号を検出するよう設定します。以下より選択します。\n放置 / 削除 / 隔離 / メールにラベル付け / ブロック","OFF"]
[null,109,null,"インド: 車両登録番号","インドの車両登録番号を検出するよう設定します。以下より選択します。\n放置 / 削除 / 隔離 / メールにラベル付け / ブロック","OFF"]
[null,110,null,"アイルランド: 銀行および財務情報","アイルランドの銀行および財務情報を検出するよう設定します。以下より選択します。\n放置 / 削除 / 隔離 / メールにラベル付け / ブロック","OFF"]
[null,111,null,"アイルランド: クレジットカード名義人情報","アイルランドのクレジットカード名義人情報を検出するよう設定します。以下より選択します。\n放置 / 削除 / 隔離 / メールにラベル付け / ブロック","OFF"]
[null,112,null,"アイルランド: 医療情報","アイルランドの医療情報を検出するよう設定します。以下より選択します。\n放置 / 削除 / 隔離 / メールにラベル付け / ブロック","OFF"]
[null,113,null,"アイルランド: IBAN (国際銀行勘定番号)","アイルランドのIBAN (国際銀行勘定番号)を検出するよう設定します。以下より選択します。\n放置 / 削除 / 隔離 / メールにラベル付け / ブロック","OFF"]
[null,114,null,"アイルランド: 個人情報","アイルランドの個人情報を検出するよう設定します。以下より選択します。\n放置 / 削除 / 隔離 / メールにラベル付け / ブロック","OFF"]
[null,115,null,"アイルランド: PPSN (個人公共サービス番号)","アイルランドのPPSN (個人公共サービス番号)を検出するよう設定します。以下より選択します。\n放置 / 削除 / 隔離 / メールにラベル付け / ブロック","OFF"]
[null,116,null,"アイルランド: VAT (付加価値税番号)","アイルランドのVAT (付加価値税番号)を検出するよう設定します。以下より選択します。\n放置 / 削除 / 隔離 / メールにラベル付け / ブロック","OFF"]
[null,117,null,"イスラエル: IBAN (国際銀行勘定番号)","イスラエルのIBAN (国際銀行勘定番号)を検出するよう設定します。以下より選択します。\n放置 / 削除 / 隔離 / メールにラベル付け / ブロック","OFF"]
[null,118,null,"イスラエル: 国民ID番号","イスラエルの国民ID番号を検出するよう設定します。以下より選択します。\n放置 / 削除 / 隔離 / メールにラベル付け / ブロック","OFF"]
[null,119,null,"イタリア: 財務コード (Fiscal Code)","イタリアの財務コード (Fiscal Code)を検出するよう設定します。以下より選択します。\n放置 / 削除 / 隔離 / メールにラベル付け / ブロック","OFF"]
[null,120,null,"イタリア: IBAN (国際銀行勘定番号)","イタリアのIBAN (国際銀行勘定番号)を検出するよう設定します。以下より選択します。\n放置 / 削除 / 隔離 / メールにラベル付け / ブロック","OFF"]
[null,121,null,"日本: 運転免許証番号","日本の運転免許証番号を検出するよう設定します。以下より選択します。\n放置 / 削除 / 隔離 / メールにラベル付け / ブロック","OFF【設定推奨】"]
[null,122,null,"日本: マイナンバー (法人) 国の機関 10件以上で検出","日本のマイナンバー (法人) 国の機関 10件以上で検出するよう設定します。以下より選択します。\n放置 / 削除 / 隔離 / メールにラベル付け / ブロック","OFF【設定推奨】"]
[null,123,null,"日本: マイナンバー (法人) 地方公共団体 (団体コードあり) 10件以上で検出","日本のマイナンバー (法人) 地方公共団体 (団体コードあり) 10件以上で検出するよう設定します。以下より選択します。\n放置 / 削除 / 隔離 / メールにラベル付け / ブロック","OFF【設定推奨】"]
[null,124,null,"日本: マイナンバー (法人) 地方公共団体 (団体コードなし) 10件以上で検出","日本のマイナンバー (法人) 地方公共団体 (団体コードなし) 10件以上で検出するよう設定します。以下より選択します。\n放置 / 削除 / 隔離 / メールにラベル付け / ブロック","OFF【設定推奨】"]
[null,125,null,"日本: マイナンバー (法人) 設立登記のある法人 10件以上で検出","日本のマイナンバー (法人) 設立登記のある法人 10件以上で検出するよう設定します。以下より選択します。\n放置 / 削除 / 隔離 / メールにラベル付け / ブロック","OFF【設定推奨】"]
[null,126,null,"日本: マイナンバー (法人) 設立登記のない法人・人格なき社団・人格なき財団 10件以上で検出","日本のマイナンバー (法人) 設立登記のない法人・人格なき社団・人格なき財団10件以上で検出するよう設定します。以下より選択します。\n放置 / 削除 / 隔離 / メールにラベル付け / ブロック","OFF【設定推奨】"]
[null,127,null,"日本: マイナンバー個人番号 10件以上で検出 (漢字)","日本のマイナンバー個人番号 10件以上で検出 (漢字)するよう設定します。以下より選択します。\n放置 / 削除 / 隔離 / メールにラベル付け / ブロック","OFF【設定推奨】"]
[null,128,null,"日本: マイナンバー個人番号 100件以上で検出 (漢字)","日本のマイナンバー個人番号 100件以上で検出 (漢字)するよう設定します。以下より選択します。\n放置 / 削除 / 隔離 / メールにラベル付け / ブロック","OFF【設定推奨】"]
[null,129,null,"日本: マイナンバー個人番号 50件以上で検出 (漢字)","日本のマイナンバー個人番号 50件以上で検出 (漢字)するよう設定します。以下より選択します。\n放置 / 削除 / 隔離 / メールにラベル付け / ブロック","OFF【設定推奨】"]
[null,130,null,"日本: パスポート番号","日本のパスポート番号を検出するよう設定します。以下より選択します。\n放置 / 削除 / 隔離 / メールにラベル付け / ブロック","OFF【設定推奨】"]
[null,131,null,"日本: 個人情報 (名字ひらがな50件以上の組み合わせで検出)","日本の個人情報 (名字ひらがな50件以上の組み合わせで検出)を検出するよう設定します。以下より選択します。\n放置 / 削除 / 隔離 / メールにラベル付け / ブロック","OFF【設定推奨】"]
[null,132,null,"日本: 個人情報 (名字漢字10件以上の組み合わせで検出)","日本の個人情報 (名字漢字10件以上の組み合わせで検出)を検出するよう設定します。以下より選択します。\n放置 / 削除 / 隔離 / メールにラベル付け / ブロック","OFF【設定推奨】"]
[null,133,null,"日本: 個人情報 (名字漢字50件以上の組み合わせで検出)","日本の個人情報 (名字漢字50件以上の組み合わせで検出)を検出するよう設定します。以下より選択します。\n放置 / 削除 / 隔離 / メールにラベル付け / ブロック","OFF【設定推奨】"]
[null,134,null,"日本: 個人情報 (名字漢字100件以上の組み合わせで検出)","日本の個人情報 (名字漢字100件以上の組み合わせで検出)を検出するよう設定します。以下より選択します。\n放置 / 削除 / 隔離 / メールにラベル付け / ブロック","OFF【設定推奨】"]
[null,135,null,"日本: 個人情報 (名字カタカナ50件以上の組み合わせで検出)","日本の個人情報 (名字カタカナ50件以上の組み合わせで検出)を検出するよう設定します。以下より選択します。\n放置 / 削除 / 隔離 / メールにラベル付け / ブロック","OFF【設定推奨】"]
[null,136,null,"日本: 個人情報 (名字半角カタカナ50件以上の組み合わせで検出)","日本の個人情報 (名字半角カタカナ50件以上の組み合わせで検出)を検出するよう設定します。以下より選択します。\n放置 / 削除 / 隔離 / メールにラベル付け / ブロック","OFF【設定推奨】"]
[null,137,null,"カザフスタン: IBAN (国際銀行勘定番号)","カザフスタンのIBAN (国際銀行勘定番号)を検出するよう設定します。以下より選択します。\n放置 / 削除 / 隔離 / メールにラベル付け / ブロック","OFF"]
[null,138,null,"クウェート: IBAN (国際銀行勘定番号)","クウェートのIBAN (国際銀行勘定番号)を検出するよう設定します。以下より選択します。\n放置 / 削除 / 隔離 / メールにラベル付け / ブロック","OFF"]
[null,139,null,"ラトビア: IBAN (国際銀行勘定番号)","ラトビアのIBAN (国際銀行勘定番号)を検出するよう設定します。以下より選択します。\n放置 / 削除 / 隔離 / メールにラベル付け / ブロック","OFF"]
[null,140,null,"ラトビア: PK - Personas Kods (個人コード)","ラトビアのPK - (個人コード)を検出するよう設定します。以下より選択します。\n放置 / 削除 / 隔離 / メールにラベル付け / ブロック","OFF"]
[null,141,null,"レバノン: IBAN (国際銀行勘定番号)","レバノンのIBAN (国際銀行勘定番号)を検出するよう設定します。以下より選択します。\n放置 / 削除 / 隔離 / メールにラベル付け / ブロック","OFF"]
[null,142,null,"リヒテンシュタイン: IBAN (国際銀行勘定番号)","リヒテンシュタインのIBAN (国際銀行勘定番号)を検出するよう設定します。以下より選択します。\n放置 / 削除 / 隔離 / メールにラベル付け / ブロック","OFF"]
[null,143,null,"リトアニア: AK - Asmens Kodas (個人コード)","リトアニアのAK - (個人コード)を検出するよう設定します。以下より選択します。\n放置 / 削除 / 隔離 / メールにラベル付け / ブロック","OFF"]
[null,144,null,"リトアニア: IBAN (国際銀行勘定番号)","リトアニアのIBAN (国際銀行勘定番号)を検出するよう設定します。以下より選択します。\n放置 / 削除 / 隔離 / メールにラベル付け / ブロック","OFF"]
[null,145,null,"ルクセンブルク: IBAN (国際銀行勘定番号)","ルクセンブルクのIBAN (国際銀行勘定番号)を検出するよう設定します。以下より選択します。\n放置 / 削除 / 隔離 / メールにラベル付け / ブロック","OFF"]
[null,146,null,"マケドニア: IBAN (国際銀行勘定番号)","マケドニアのIBAN (国際銀行勘定番号)を検出するよう設定します。以下より選択します。\n放置 / 削除 / 隔離 / メールにラベル付け / ブロック","OFF"]
[null,147,null,"マケドニア: ЕМБГ - Единствен матичен број на граѓанинот (個別マスター住民番号 (Unique Master Citizen Number))","マケドニアのЕМБГ - (個別マスター住民番号 (Unique Master Citizen Number))を検出するよう設定します。以下より選択します。\n放置 / 削除 / 隔離 / メールにラベル付け / ブロック","OFF"]
[null,148,null,"マレーシア: 携帯電話番号","マレーシアの携帯電話番号を検出するよう設定します。以下より選択します。\n放置 / 削除 / 隔離 / メールにラベル付け / ブロック","OFF"]
[null,149,null,"マレーシア: NRIC - 国民登録識別カード番号","マレーシアのNRIC - 国民登録識別カード番号を検出するよう設定します。以下より選択します。\n放置 / 削除 / 隔離 / メールにラベル付け / ブロック","OFF"]
[null,150,null,"マレーシア: 電話番号","マレーシアの電話番号を検出するよう設定します。以下より選択します。\n放置 / 削除 / 隔離 / メールにラベル付け / ブロック","OFF"]
[null,151,null,"マルタ: IBAN (国際銀行勘定番号)","マルタのIBAN (国際銀行勘定番号)を検出するよう設定します。以下より選択します。\n放置 / 削除 / 隔離 / メールにラベル付け / ブロック","OFF"]
[null,152,null,"モーリタニア: IBAN (国際銀行勘定番号)","モーリタニアのIBAN (国際銀行勘定番号)を検出するよう設定します。以下より選択します。\n放置 / 削除 / 隔離 / メールにラベル付け / ブロック","OFF"]
[null,153,null,"モーリシャス: IBAN (国際銀行勘定番号)","モーリシャスのIBAN (国際銀行勘定番号)を検出するよう設定します。以下より選択します。\n放置 / 削除 / 隔離 / メールにラベル付け / ブロック","OFF"]
[null,154,null,"メキシコ: RFC - Registro Federal de Contribuyentes (納税者番号)","メキシコのRFC - (納税者番号)を検出するよう設定します。以下より選択します。\n放置 / 削除 / 隔離 / メールにラベル付け / ブロック","OFF"]
[null,155,null,"モルドバ: IBAN (国際銀行勘定番号)","モルドバのIBAN (国際銀行勘定番号)を検出するよう設定します。以下より選択します。\n放置 / 削除 / 隔離 / メールにラベル付け / ブロック","OFF"]
[null,156,null,"モナコ: IBAN (国際銀行勘定番号)","モナコのIBAN (国際銀行勘定番号)を検出するよう設定します。以下より選択します。\n放置 / 削除 / 隔離 / メールにラベル付け / ブロック","OFF"]
[null,157,null,"モンテネグロ: IBAN (国際銀行勘定番号)","モンテネグロのIBAN (国際銀行勘定番号)を検出するよう設定します。以下より選択します。\n放置 / 削除 / 隔離 / メールにラベル付け / ブロック","OFF"]
[null,158,null,"モンテネグロ: JMBG - Јединствени матични број грађана (個別マスター住民番号 (Unique Master Citizen Number))","モンテネグロのJMBG - (個別マスター住民番号 (Unique Master Citizen Number))を検出するよう設定します。以下より選択します。\n放置 / 削除 / 隔離 / メールにラベル付け / ブロック","OFF"]
[null,159,null,"オランダ: IBAN (国際銀行勘定番号)","オランダのIBAN (国際銀行勘定番号)を検出するよう設定します。以下より選択します。\n放置 / 削除 / 隔離 / メールにラベル付け / ブロック","OFF"]
[null,160,null,"ニュージーランド: IRD番号","ニュージーランドのIRD番号を検出するよう設定します。以下より選択します。\n放置 / 削除 / 隔離 / メールにラベル付け / ブロック","OFF"]
[null,161,null,"ニュージーランド: 国民保健検索番号","ニュージーランドの国民保健検索番号を検出するよう設定します。以下より選択します。\n放置 / 削除 / 隔離 / メールにラベル付け / ブロック","OFF"]
[null,162,null,"ナイジェリア: Verve IIN (発行者識別番号)","ナイジェリアのVerve IIN (発行者識別番号)を検出するよう設定します。以下より選択します。\n放置 / 削除 / 隔離 / メールにラベル付け / ブロック","OFF"]
[null,163,null,"ノルウェー: Fødselsnummer (国民ID番号)","ノルウェーのFødselsnummer (国民ID番号)を検出するよう設定します。以下より選択します。\n放置 / 削除 / 隔離 / メールにラベル付け / ブロック","OFF"]
[null,164,null,"ノルウェー: IBAN (国際銀行勘定番号)","ノルウェーのIBAN (国際銀行勘定番号)を検出するよう設定します。以下より選択します。\n放置 / 削除 / 隔離 / メールにラベル付け / ブロック","OFF"]
[null,165,null,"パキスタン: IBAN (国際銀行勘定番号)","パキスタンのIBAN (国際銀行勘定番号)を検出するよう設定します。以下より選択します。\n放置 / 削除 / 隔離 / メールにラベル付け / ブロック","OFF"]
[null,166,null,"ポーランド: Dowód Osobisty (国民IDカード番号)","ポーランドのDowód Osobisty (国民IDカード番号)を検出するよう設定します。以下より選択します。\n放置 / 削除 / 隔離 / メールにラベル付け / ブロック","OFF"]
[null,167,null,"ポーランド: IBAN (国際銀行勘定番号)","ポーランドのIBAN (国際銀行勘定番号)を検出するよう設定します。以下より選択します。\n放置 / 削除 / 隔離 / メールにラベル付け / ブロック","OFF"]
[null,168,null,"ポーランド: PESEL - Powszechny Elektroniczny System Ewidencji Ludności (国民ID番号)","ポーランドのPESEL - (国民ID番号)を検出するよう設定します。以下より選択します。\n放置 / 削除 / 隔離 / メールにラベル付け / ブロック","OFF"]
[null,169,null,"ポルトガル: IBAN (国際銀行勘定番号)","ポルトガルのIBAN (国際銀行勘定番号)を検出するよう設定します。以下より選択します。\n放置 / 削除 / 隔離 / メールにラベル付け / ブロック","OFF"]
[null,170,null,"人種差別","人種差別を検出するよう設定します。以下より選択します。\n放置 / 削除 / 隔離 / メールにラベル付け / ブロック","OFF"]
[null,171,null,"ルーマニア: CNP - Cod Numeric Personal (個人識別数字コード)","ルーマニアのCNP - (個人識別数字コード)を検出するよう設定します。以下より選択します。\n放置 / 削除 / 隔離 / メールにラベル付け / ブロック","OFF"]
[null,172,null,"ルーマニア: IBAN (国際銀行勘定番号)","ルーマニアのIBAN (国際銀行勘定番号)を検出するよう設定します。以下より選択します。\n放置 / 削除 / 隔離 / メールにラベル付け / ブロック","OFF"]
[null,173,null,"サンマリノ: IBAN (国際銀行勘定番号)","サンマリノのIBAN (国際銀行勘定番号)を検出するよう設定します。以下より選択します。\n放置 / 削除 / 隔離 / メールにラベル付け / ブロック","OFF"]
[null,174,null,"サウジアラビア: IBAN (国際銀行勘定番号)","サウジアラビアのIBAN (国際銀行勘定番号)を検出するよう設定します。以下より選択します。\n放置 / 削除 / 隔離 / メールにラベル付け / ブロック","OFF"]
[null,175,null,"セルビア: IBAN (国際銀行勘定番号)","セルビアのIBAN (国際銀行勘定番号)を検出するよう設定します。以下より選択します。\n放置 / 削除 / 隔離 / メールにラベル付け / ブロック","OFF"]
[null,176,null,"セルビア: JMBG - Јединствени матични број грађана (個別マスター住民番号 (Unique Master Citizen Number))","セルビアのJMBG - (個別マスター住民番号 (Unique Master Citizen Number))を検出するよう設定します。以下より選択します。\n放置 / 削除 / 隔離 / メールにラベル付け / ブロック","OFF"]
[null,177,null,"シンガポール: 銀行および財務情報","シンガポールの銀行および財務情報を検出するよう設定します。以下より選択します。\n放置 / 削除 / 隔離 / メールにラベル付け / ブロック","OFF"]
[null,178,null,"シンガポール: クレジットカード名義人情報","シンガポールのクレジットカード名義人情報を検出するよう設定します。以下より選択します。\n放置 / 削除 / 隔離 / メールにラベル付け / ブロック","OFF"]
[null,179,null,"シンガポール: 医療情報","シンガポールの医療情報を検出するよう設定します。以下より選択します。\n放置 / 削除 / 隔離 / メールにラベル付け / ブロック","OFF"]
[null,180,null,"シンガポール: NRIC - 国民登録識別カード番号","シンガポールのNRIC - 国民登録識別カード番号を検出するよう設定します。以下より選択します。\n放置 / 削除 / 隔離 / メールにラベル付け / ブロック","OFF"]
[null,181,null,"シンガポール: 個人情報","シンガポールの個人情報を検出するよう設定します。以下より選択します。\n放置 / 削除 / 隔離 / メールにラベル付け / ブロック","OFF"]
[null,182,null,"シンガポール: 電話番号","シンガポールの電話番号を検出するよう設定します。以下より選択します。\n放置 / 削除 / 隔離 / メールにラベル付け / ブロック","OFF"]
[null,183,null,"スロバキア: IBAN (国際銀行勘定番号)","スロバキアのIBAN (国際銀行勘定番号)を検出するよう設定します。以下より選択します。\n放置 / 削除 / 隔離 / メールにラベル付け / ブロック","OFF"]
[null,184,null,"スロバキア: RC - Rodne Cislo (出生番号)","スロバキアのRC - (出生番号)を検出するよう設定します。以下より選択します。\n放置 / 削除 / 隔離 / メールにラベル付け / ブロック","OFF"]
[null,185,null,"スロベニア: EMŠO - Enotna matična številka občana (個別マスター住民番号 (Unique Master Citizen Number))","スロベニアのEMŠO - (個別マスター住民番号 (Unique Master Citizen Number))を検出するよう設定します。以下より選択します。\n放置 / 削除 / 隔離 / メールにラベル付け / ブロック","OFF"]
[null,186,null,"スロベニア: IBAN (国際銀行勘定番号)","スロベニアのIBAN (国際銀行勘定番号)を検出するよう設定します。以下より選択します。\n放置 / 削除 / 隔離 / メールにラベル付け / ブロック","OFF"]
[null,187,null,"ソースコード: C#","ソースコードのC#を検出するよう設定します。以下より選択します。\n放置 / 削除 / 隔離 / メールにラベル付け / ブロック","OFF"]
[null,188,null,"ソースコード: C/C++","ソースコードのC/C++を検出するよう設定します。以下より選択します。\n放置 / 削除 / 隔離 / メールにラベル付け / ブロック","OFF"]
[null,189,null,"ソースコード: COBOL","ソースコードのCOBOLを検出するよう設定します。以下より選択します。\n放置 / 削除 / 隔離 / メールにラベル付け / ブロック","OFF"]
[null,190,null,"ソースコード: Java","ソースコードのJavaを検出するよう設定します。以下より選択します。\n放置 / 削除 / 隔離 / メールにラベル付け / ブロック","OFF"]
[null,191,null,"ソースコード: Perl","ソースコードのPerlを検出するよう設定します。以下より選択します。\n放置 / 削除 / 隔離 / メールにラベル付け / ブロック","OFF"]
[null,192,null,"ソースコード: VB","ソースコードのVBを検出するよう設定します。以下より選択します。\n放置 / 削除 / 隔離 / メールにラベル付け / ブロック","OFF"]
[null,193,null,"ソースコード","ソースコードを検出するよう設定します。以下より選択します。\n放置 / 削除 / 隔離 / メールにラベル付け / ブロック","OFF"]
[null,194,null,"韓国: 銀行および財務情報","韓国の銀行および財務情報を検出するよう設定します。以下より選択します。\n放置 / 削除 / 隔離 / メールにラベル付け / ブロック","OFF"]
[null,195,null,"韓国: クレジットカード名義人情報","韓国のクレジットカード名義人情報を検出するよう設定します。以下より選択します。\n放置 / 削除 / 隔離 / メールにラベル付け / ブロック","OFF"]
[null,196,null,"韓国: 住民登録番号","韓国の住民登録番号を検出するよう設定します。以下より選択します。\n放置 / 削除 / 隔離 / メールにラベル付け / ブロック","OFF"]
[null,197,null,"スペイン: DNI - Documento Nacional de Identidad (国民IDカード番号)","スペインのDNI - (国民IDカード番号)を検出するよう設定します。以下より選択します。\n放置 / 削除 / 隔離 / メールにラベル付け / ブロック","OFF"]
[null,198,null,"スペイン: フルネーム","スペインのフルネームを検出するよう設定します。以下より選択します。\n放置 / 削除 / 隔離 / メールにラベル付け / ブロック","OFF"]
[null,199,null,"スペイン: IBAN (国際銀行勘定番号)","スペインのIBAN (国際銀行勘定番号)を検出するよう設定します。以下より選択します。\n放置 / 削除 / 隔離 / メールにラベル付け / ブロック","OFF"]
[null,200,null,"スペイン: NAF - Número de Afiliacion a la Seguridad Social (社会保障番号)","スペインのNAF - (社会保障番号)を検出するよう設定します。以下より選択します。\n放置 / 削除 / 隔離 / メールにラベル付け / ブロック","OFF"]
[null,201,null,"スペイン: NIF - Número de Identificación Fiscal (納税者番号)","スペインのNIF - (納税者番号)を検出するよう設定します。以下より選択します。\n放置 / 削除 / 隔離 / メールにラベル付け / ブロック","OFF"]
[null,202,null,"スウェーデン: IBAN (国際銀行勘定番号)","スウェーデンのIBAN (国際銀行勘定番号)を検出するよう設定します。以下より選択します。\n放置 / 削除 / 隔離 / メールにラベル付け / ブロック","OFF"]
[null,203,null,"スウェーデン: Personnummer (個人ID番号)","スウェーデンのPersonnummer (個人ID番号)を検出するよう設定します。以下より選択します。\n放置 / 削除 / 隔離 / メールにラベル付け / ブロック","OFF"]
[null,204,null,"スイス: IBAN (国際銀行勘定番号)","スイスのIBAN (国際銀行勘定番号)を検出するよう設定します。以下より選択します。\n放置 / 削除 / 隔離 / メールにラベル付け / ブロック","OFF"]
[null,205,null,"台湾: 住所","台湾の住所を検出するよう設定します。以下より選択します。\n放置 / 削除 / 隔離 / メールにラベル付け / ブロック","OFF"]
[null,206,null,"台湾: 銀行口座番号","台湾の銀行口座番号を検出するよう設定します。以下より選択します。\n放置 / 削除 / 隔離 / メールにラベル付け / ブロック","OFF"]
[null,207,null,"台湾: 国泰世華銀行の口座番号","台湾の国泰世華銀行の口座番号を検出するよう設定します。以下より選択します。\n放置 / 削除 / 隔離 / メールにラベル付け / ブロック","OFF"]
[null,208,null,"台湾: IMSI (国際移動体加入者識別番号)","台湾のIMSI (国際移動体加入者識別番号)を検出するよう設定します。以下より選択します。\n放置 / 削除 / 隔離 / メールにラベル付け / ブロック","OFF"]
[null,209,null,"台湾: 日盛銀行の口座番号","台湾の日盛銀行の口座番号を検出するよう設定します。以下より選択します。\n放置 / 削除 / 隔離 / メールにラベル付け / ブロック","OFF"]
[null,210,null,"台湾: 兆豊銀行の口座番号","台湾の兆豊銀行の口座番号を検出するよう設定します。以下より選択します。\n放置 / 削除 / 隔離 / メールにラベル付け / ブロック","OFF"]
[null,211,null,"台湾: 携帯電話番号","台湾の携帯電話番号を検出するよう設定します。以下より選択します。\n放置 / 削除 / 隔離 / メールにラベル付け / ブロック","OFF"]
[null,212,null,"台湾: 名前","台湾の名前を検出するよう設定します。以下より選択します。\n放置 / 削除 / 隔離 / メールにラベル付け / ブロック","OFF"]
[null,213,null,"台湾: 国民健康保険 (NHI) 薬品コード","台湾の国民健康保険 (NHI) 薬品コードを検出するよう設定します。以下より選択します。\n放置 / 削除 / 隔離 / メールにラベル付け / ブロック","OFF"]
[null,214,null,"台湾: 国民ID番号","台湾の国民ID番号を検出するよう設定します。以下より選択します。\n放置 / 削除 / 隔離 / メールにラベル付け / ブロック","OFF"]
[null,215,null,"台湾: SKH診療記録番号","台湾のSKH診療記録番号を検出するよう設定します。以下より選択します。\n放置 / 削除 / 隔離 / メールにラベル付け / ブロック","OFF"]
[null,216,null,"台湾: VGH診療記録番号","台湾のVGH診療記録番号を検出するよう設定します。以下より選択します。\n放置 / 削除 / 隔離 / メールにラベル付け / ブロック","OFF"]
[null,217,null,"タイ: 国民ID番号","タイの国民ID番号を検出するよう設定します。以下より選択します。\n放置 / 削除 / 隔離 / メールにラベル付け / ブロック","OFF"]
[null,218,null,"タイ: SCB銀行口座番号","タイのSCB銀行口座番号を検出するよう設定します。以下より選択します。\n放置 / 削除 / 隔離 / メールにラベル付け / ブロック","OFF"]
[null,219,null,"タイ: SCB銀行借入口座番号","タイのSCB銀行借入口座番号を検出するよう設定します。以下より選択します。\n放置 / 削除 / 隔離 / メールにラベル付け / ブロック","OFF"]
[null,220,null,"チュニジア: IBAN (国際銀行勘定番号)","チュニジアのIBAN (国際銀行勘定番号)を検出するよう設定します。以下より選択します。\n放置 / 削除 / 隔離 / メールにラベル付け / ブロック","OFF"]
[null,221,null,"トルコ: IBAN (国際銀行勘定番号)","トルコのIBAN (国際銀行勘定番号)を検出するよう設定します。以下より選択します。\n放置 / 削除 / 隔離 / メールにラベル付け / ブロック","OFF"]
[null,222,null,"トルコ: T.C. Kimlik No. - Türkiye Cumhuriyeti Kimlik Numarası (個人ID番号)","トルコのT.C. Kimlik No. - (個人ID番号)を検出するよう設定します。以下より選択します。\n放置 / 削除 / 隔離 / メールにラベル付け / ブロック","OFF"]
[null,223,null,"英国: 銀行および財務情報","英国の銀行および財務情報を検出するよう設定します。以下より選択します。\n放置 / 削除 / 隔離 / メールにラベル付け / ブロック","OFF"]
[null,224,null,"英国: クレジットカード名義人情報","英国のクレジットカード名義人情報を検出するよう設定します。以下より選択します。\n放置 / 削除 / 隔離 / メールにラベル付け / ブロック","OFF"]
[null,225,null,"英国: 医療情報","英国の医療情報を検出するよう設定します。以下より選択します。\n放置 / 削除 / 隔離 / メールにラベル付け / ブロック","OFF"]
[null,226,null,"英国: 自宅住所","英国の自宅住所を検出するよう設定します。以下より選択します。\n放置 / 削除 / 隔離 / メールにラベル付け / ブロック","OFF"]
[null,227,null,"英国: IBAN (国際銀行勘定番号)","英国のIBAN (国際銀行勘定番号)を検出するよう設定します。以下より選択します。\n放置 / 削除 / 隔離 / メールにラベル付け / ブロック","OFF"]
[null,228,null,"英国: NHS番号 (国民健康サービス番号)","英国のNHS番号 (国民健康サービス番号)を検出するよう設定します。以下より選択します。\n放置 / 削除 / 隔離 / メールにラベル付け / ブロック","OFF"]
[null,229,null,"英国: NIN (国民保険番号)","英国のNIN (国民保険番号)を検出するよう設定します。以下より選択します。\n放置 / 削除 / 隔離 / メールにラベル付け / ブロック","OFF"]
[null,230,null,"英国: 個人情報","英国の個人情報を検出するよう設定します。以下より選択します。\n放置 / 削除 / 隔離 / メールにラベル付け / ブロック","OFF"]
[null,231,null,"英国: RD&E病院の患者番号","英国のRD&E病院の患者番号を検出するよう設定します。以下より選択します。\n放置 / 削除 / 隔離 / メールにラベル付け / ブロック","OFF"]
[null,232,null,"アラブ首長国連邦: IBAN (国際銀行勘定番号)","アラブ首長国連邦のIBAN (国際銀行勘定番号)を検出するよう設定します。以下より選択します。\n放置 / 削除 / 隔離 / メールにラベル付け / ブロック","OFF"]
[null,233,null,"米国: ABAナンバー","米国のABAナンバーを検出するよう設定します。以下より選択します。\n放置 / 削除 / 隔離 / メールにラベル付け / ブロック","OFF"]
[null,234,null,"米国: 銀行および財務情報","米国の銀行および財務情報を検出するよう設定します。以下より選択します。\n放置 / 削除 / 隔離 / メールにラベル付け / ブロック","OFF"]
[null,235,null,"米国: カリフォルニアIDまたは運転免許証番号","米国のカリフォルニアIDまたは運転免許証番号を検出するよう設定します。以下より選択します。\n放置 / 削除 / 隔離 / メールにラベル付け / ブロック","OFF"]
[null,236,null,"米国: クレジットカード名義人情報","米国のクレジットカード名義人情報を検出するよう設定します。以下より選択します。\n放置 / 削除 / 隔離 / メールにラベル付け / ブロック","OFF"]
[null,237,null,"米国: ドル単位の金額","米国のドル単位の金額を検出するよう設定します。以下より選択します。\n放置 / 削除 / 隔離 / メールにラベル付け / ブロック","OFF"]
[null,238,null,"米国: 金融取引情報","米国の金融取引情報を検出するよう設定します。以下より選択します。\n放置 / 削除 / 隔離 / メールにラベル付け / ブロック","OFF"]
[null,239,null,"米国: GLBA","米国のGLBAを検出するよう設定します。以下より選択します。\n放置 / 削除 / 隔離 / メールにラベル付け / ブロック","OFF"]
[null,240,null,"米国: HCFA (CMS) 1500フォーム","米国のHCFA (CMS) 1500フォームを検出するよう設定します。以下より選択します。\n放置 / 削除 / 隔離 / メールにラベル付け / ブロック","OFF"]
[null,241,null,"米国: HICN (健康保険請求番号)","米国のHICN (健康保険請求番号)を検出するよう設定します。以下より選択します。\n放置 / 削除 / 隔離 / メールにラベル付け / ブロック","OFF"]
[null,242,null,"米国: HIPAA","米国のHIPAAを検出するよう設定します。以下より選択します。\n放置 / 削除 / 隔離 / メールにラベル付け / ブロック","OFF"]
[null,243,null,"米国: NPI (国家プロバイダ認証)","米国のNPI (国家プロバイダ認証)を検出するよう設定します。以下より選択します。\n放置 / 削除 / 隔離 / メールにラベル付け / ブロック","OFF"]
[null,244,null,"米国: PCI-DSS","米国のPCI-DSSを検出するよう設定します。以下より選択します。\n放置 / 削除 / 隔離 / メールにラベル付け / ブロック","OFF"]
[null,245,null,"米国: 電話番号","米国の電話番号を検出するよう設定します。以下より選択します。\n放置 / 削除 / 隔離 / メールにラベル付け / ブロック","OFF"]
[null,246,null,"米国: PII (個人情報)","米国のPII (個人情報)を検出するよう設定します。以下より選択します。\n放置 / 削除 / 隔離 / メールにラベル付け / ブロック","OFF"]
[null,247,null,"米国: サーベーンズ・オクスレー法 (Sarbanes-Oxley Act)","米国のサーベーンズ・オクスレー法 (Sarbanes-Oxley Act)を検出するよう設定します。以下より選択します。\n放置 / 削除 / 隔離 / メールにラベル付け / ブロック","OFF"]
[null,248,null,"米国: SB-1386","米国のSB-1386を検出するよう設定します。以下より選択します。\n放置 / 削除 / 隔離 / メールにラベル付け / ブロック","OFF"]
[null,249,null,"米国: SSN (社会保障番号)","米国のSSN (社会保障番号)を検出するよう設定します。以下より選択します。\n放置 / 削除 / 隔離 / メールにラベル付け / ブロック","OFF"]
[null,250,null,"米国: UB-04フォーム","米国のUB-04フォームを検出するよう設定します。以下より選択します。\n放置 / 削除 / 隔離 / メールにラベル付け / ブロック","OFF"]
[null,251,null,"通知"]
[null,252,null,"管理者に通知する","実行された処理の通知を管理者に行うかを設定します。","ON"]
[null,253,null,"通知のしきい値","通知を行う頻度を設定します。\n1.一括通知を時間に応じて通知する。1時間～n日単位で設定できます。\n2.一括通知を件数ごとに通知します。\n3.個別に通知します","設定する番号及び通知する条件を記載します。\n例：1、および2時間ごと"]
[null,254,null,"ユーザーに通知する","実行された処理の通知をユーザーに行うかを設定します。","OFF"]
[null,255,"キーワード抽出","キーワード抽出を有効にする ","キーワード抽出を有効にするかを設定します。","OFF"]
[null,256,null,"ルール"]
[null,257,null,"ファイル形式:","キーワード抽出を行うファイルの形式を設定します。以下を設定できます。\n1,テキスト \n2,Adobe PDF \n3,Microsoft Word、Excel、PowerPoint (ヘッダ、フッタ、プロパティのみ) ","ONに変更する数字を記載します。"]
[null,258,null,"条件","抽出条件を指定します。以下から設定できます。\n1,含む\n2,含まない","1,含む"]
[null,259,null,"キーワード:","抽出するキーワードを独自に設定します。"]
[null,260,null,"処理"]
[null,261,null,"処理：","抽出したキーワードに対する処理を設定します。以下から設定できます。\n1,通知\n2,通知しない","2,通知しない"]
[null,262,null,"通知"]
[null,263,null,"管理者に通知する","実行された処理の通知を管理者に行うかを設定します。","ON"]
[null,264,null,"通知のしきい値","通知を行う頻度を設定します。\n1.一括通知を時間に応じて通知する。1時間～n日単位で設定できます。\n2.一括通知を件数ごとに通知します。\n3.個別に通知します","設定する番号及び通知する条件を記載します。\n例：1、および2時間ごと"]
[null,265,null,"ユーザーに通知する","実行された処理の通知をユーザーに行うかを設定します。","OFF"]
[null,266,"共有リンク制御","一般"]
[null,267,null,"共有リンク制御を有効にする","BOXの共有リンク制御を有効にします。","OFF"]
[null,268,null,"ポリシー名：","実行された際に表示されるポリシー名です。","共有リンク制御ポリシー"]
[null,269,null,"概要：","ポリシー名の概要が記載されます","Boxでファイルおよびフォルダへの共有リンクの作成の管理に使用されるポリシー"]
[null,270,null,"共有リンク制御"]
[null,271,null,"処理","ポリシーが実行された際の処理を設定します。","以下から設定を選択します。\n 「リンクの削除」 / 「放置」 および 「通知」 / 「通知しない」"]
[null,272,null,"除外","ポリシー対象から除外するユーザおよび項目を定義します。"]
[null,273,null,"通知"]
[null,274,null,"管理者に通知する","実行された処理の通知を管理者に行うかを設定します。","ON"]
[null,275,null,"通知のしきい値","通知を行う頻度を設定します。\n1.一括通知を時間に応じて通知する。1時間～n日単位で設定できます。\n2.一括通知を件数ごとに通知します。\n3.個別に通知します","設定する番号及び通知する条件を記載します。\n例：1、および2時間ごと"]
[null,276,null,"ユーザーに通知する","実行された処理の通知をユーザーに行うかを設定します。","OFF"]

{"sheet":"【記入例】情報漏えい対策","index":4,"n_rows":295,"n_cols":15,"rows_kept":295,"cut":false,"hidden":false,"merged":[[273,2,283,2],[284,2,294,2],[6,7,6,8],[6,9,6,11],[15,7,15,8],[15,9,15,11],[17,2,20,2],[21,2,272,2]]}
[]
[null,"【シート1】アプリケーションコントロール詳細設定"]
[null,"設定したい情報漏えい対策を変更クラウドアプリ項目欄に説明やデフォルト設定等欄を参考に入力ください。"]
[null,null,"※カテゴリグループすべての設定を推奨設定に変更したい場合は、【カテゴリごとに一括設定】に記入してください。"]
[null,null,"※カテゴリグループの設定ごとに独自設定を設定したい場合は、【カテゴリ配下ジャンルごとの設定】に記入してください。"]
[]
[null,"【カテゴリごとに一括設定(推奨設定)】",null,null,null,null,null,"変更クラウドアプリを選択",null,"※水色で塗りつぶされているセルはプルダウンから選択",null,null,null,null,"※シート①-1にて、該当項目にチェックを入れてから設定してください↓"]
[null,"項番","カテゴリ",null,null,"デフォルト設定",null,"Exchange","OneDrive","SharePoint","Teams","Gmail","Google ドライブ","DropBox","Box"]
[null,"Ａ","一般",null,null,"OFF",null,"○","○","○","○"]
[null,"Ｂ","情報漏えい対策",null,null,"OFF",null,"○","○","○","○"]
[null,"Ｃ","キーワード検出","Boxのみが対象となります。",null,"OFF"]
[null,"Ｄ","共有リンク制御","Boxの共有リンク制御ポリシーのみが対象になります",null,"OFF"]
[null,"Ｅ"]
[null,"Ｆ"]
[]
[null,"【カテゴリ配下情報漏えい対策ごとの設定】",null,null,null,null,null,"変更クラウドアプリを選択",null,"※水色で塗りつぶされているセルはプルダウンから選択",null,null,null,null,"※シート①-1にて、該当項目にチェックを入れてから設定してください↓"]
[null,"項番","カテゴリ","項目","説明","デフォルト設定等",null,"Exchange Online","OneDrive","SharePoint Online","Teams","Gmail","Google ドライブ","DropBox","Box"]
[null,1,"一般","リアルタイム検索を有効にする","リアルタイム検索を有効にするかを設定します。","OFF",null,null,null,null,null,"ON",null,null,"ON"]
[null,2,null,"ポリシー名","実行された際に表示されるポリシー名です。","初期設定の○○○ポリシー - 情報漏えい対策",null,null,null,null,null,"Gmailポリシー - 情報漏えい対策",null,null,"BOXポリシー - 情報漏えい対策"]
[null,null,null,"概要","ポリシー名の概要が記載されます"]
[null,3,null,"優先度","ポリシーの優先度が数字で表されます。数字が小さいほど優先度が高く、デフォルトで値が入っています。","1or2",null,null,null,null,null,1,null,null,1]
[null,4,"情報漏えい対策","情報漏えい対策を有効にする ","情報漏えい対策を有効にするかを設定します。","OFF",null,null,null,null,null,"ON",null,null,"ON"]
[null,5,null,"機密データを含むログ内の違反コンテンツを表示する","機密データを含むログ内の違反コンテンツを表示するかを設定ます。","OFF",null,null,null,null,null,"OFF",null,null,"ON"]
[null,"5-1",null,"機密データを含むログ内の違反コンテンツを表示する際のデータのマスク設定","データのマスク設定を以下から決定します。\n1,機密データをマスクする\n2,機密データをマスクしない",2,null,null,null,null,null," ",null,null,1]
[null,6,null,"コンプライアンスルール"]
[null,7,null,"アダルト","アダルトサイトからのメールやそれに関連するファイルを検出するように設定します。以下より選択します。\n放置 / 削除 / 隔離 / メールにラベル付け / ブロック","OFF【設定推奨】",null,null,null,null,null,"削除",null,null,"削除"]
[null,8,null,"アルバニア: IBAN (国際銀行勘定番号)","アルバニアの IBAN (国際銀行勘定番号)を検出するよう設定します。以下より選択します。\n放置 / 削除 / 隔離 / メールにラベル付け / ブロック","OFF"]
[null,9,null,"すべてのファイル拡張子","すべてのファイル拡張子を検出するよう設定します。以下より選択します。\n放置 / 削除 / 隔離 / メールにラベル付け / ブロック","OFF【設定推奨】",null,null,null,null,null,"放置",null,null,"放置"]
[null,10,null,"すべての個人情報 (英語)","すべての個人情報 (英語)を検出するよう設定します。以下より選択します。\n放置 / 削除 / 隔離 / メールにラベル付け / ブロック","OFF"]
[null,11,null,"すべて: クレジットカード番号","すべてのクレジットカード番号を検出するよう設定します。以下より選択します。\n放置 / 削除 / 隔離 / メールにラベル付け / ブロック","OFF【設定推奨】",null,null,null,null,null,"隔離",null,null,"隔離"]
[null,12,null,"すべて: IBAN (国際銀行勘定番号)","すべてのIBAN (国際銀行勘定番号)を検出するよう設定します。以下より選択します。\n放置 / 削除 / 隔離 / メールにラベル付け / ブロック","OFF【設定推奨】",null,null,null,null,null,"隔離",null,null,"隔離"]
[null,13,null,"すべて: IIN (発行者識別番号)","すべてのIIN (発行者識別番号)を検出するよう設定します。以下より選択します。\n放置 / 削除 / 隔離 / メールにラベル付け / ブロック","OFF【設定推奨】",null,null,null,null,null,"隔離",null,null,"隔離"]
[null,14,null,"すべて: IMEI (国際移動体装置識別番号)","すべてのIMEI (国際移動体装置識別番号)を検出するよう設定します。以下より選択します。\n放置 / 削除 / 隔離 / メールにラベル付け / ブロック","OFF"]
[null,15,null,"すべて: 米国勢調査局発行の名前","すべての米国勢調査局発行の名前を検出するよう設定します。以下より選択します。\n放置 / 削除 / 隔離 / メールにラベル付け / ブロック","OFF"]
[null,16,null,"すべて: SWIFT BIC (SWIFT金融機関識別コード)","すべてのSWIFT BIC (SWIFT金融機関識別コード)を検出するよう設定します。以下より選択します。\n放置 / 削除 / 隔離 / メールにラベル付け / ブロック","OFF【設定推奨】",null,null,null,null,null,"隔離",null,null,"隔離"]
[null,17,null,"すべて: タイムゾーンオフセット","すべてのタイムゾーンオフセットを検出するよう設定します。以下より選択します。\n放置 / 削除 / 隔離 / メールにラベル付け / ブロック","OFF"]
[null,18,null,"アンドラ: IBAN (国際銀行勘定番号)","アンドラのIBAN (国際銀行勘定番号)を検出するよう設定します。以下より選択します。\n放置 / 削除 / 隔離 / メールにラベル付け / ブロック","OFF"]
[null,19,null,"オーストラリア、ニュージーランド: 銀行および財務情報","オーストラリア、ニュージーランドの銀行および財務情報を検出するよう設定します。以下より選択します。\n放置 / 削除 / 隔離 / メールにラベル付け / ブロック","OFF"]
[null,20,null,"オーストラリア、ニュージーランド: クレジットカード名義人情報","オーストラリア、ニュージーランドのクレジットカード名義人情報を検出するよう設定します。以下より選択します。\n放置 / 削除 / 隔離 / メールにラベル付け / ブロック","OFF"]
[null,21,null,"オーストラリア、ニュージーランド: 医療情報","オーストラリア、ニュージーランドの医療情報を検出するよう設定します。以下より選択します。\n放置 / 削除 / 隔離 / メールにラベル付け / ブロック","OFF"]
[null,22,null,"オーストラリア、ニュージーランド: 個人情報","オーストラリア、ニュージーランドの個人情報を検出するよう設定します。以下より選択します。\n放置 / 削除 / 隔離 / メールにラベル付け / ブロック","OFF"]
[null,23,null,"オーストラリア: TFN (納税ファイル番号)","オーストラリアのTFN (納税ファイル番号)を検出するよう設定します。以下より選択します。\n放置 / 削除 / 隔離 / メールにラベル付け / ブロック","OFF"]
[null,24,null,"オーストリア: IBAN (国際銀行勘定番号)","オーストリアのIBAN (国際銀行勘定番号)を検出するよう設定します。以下より選択します。\n放置 / 削除 / 隔離 / メールにラベル付け / ブロック","OFF"]
[null,25,null,"オーストリア: SSN - Sozialversicherungsnummer (社会保障番号)","オーストリアのSSN - (社会保障番号)を検出するよう設定します。以下より選択します。\n放置 / 削除 / 隔離 / メールにラベル付け / ブロック","OFF"]
[null,26,null,"アゼルバイジャン: IBAN (国際銀行勘定番号)","アゼルバイジャンのIBAN (国際銀行勘定番号)を検出するよう設定します。以下より選択します。\n放置 / 削除 / 隔離 / メールにラベル付け / ブロック","OFF"]
[null,27,null,"バーレーン: IBAN (国際銀行勘定番号)","バーレーンのIBAN (国際銀行勘定番号)を検出するよう設定します。以下より選択します。\n放置 / 削除 / 隔離 / メールにラベル付け / ブロック","OFF"]
[null,28,null,"銀行および財務情報","銀行および財務情報を検出するよう設定します。以下より選択します。\n放置 / 削除 / 隔離 / メールにラベル付け / ブロック","OFF【設定推奨】",null,null,null,null,null,"隔離",null,null,"隔離"]
[null,29,null,"ベルギー: IBAN (国際銀行勘定番号)","ベルギーのIBAN (国際銀行勘定番号)を検出するよう設定します。以下より選択します。\n放置 / 削除 / 隔離 / メールにラベル付け / ブロック","OFF"]
[null,30,null,"ベルギー: 国民登録番号","ベルギーの国民登録番号を検出するよう設定します。以下より選択します。\n放置 / 削除 / 隔離 / メールにラベル付け / ブロック","OFF"]
[null,31,null,"ボスニア・ヘルツェゴビナ: IBAN (国際銀行勘定番号)","ボスニア・ヘルツェゴビナのIBAN (国際銀行勘定番号)を検出するよう設定します。以下より選択します。\n放置 / 削除 / 隔離 / メールにラベル付け / ブロック","OFF"]
[null,32,null,"ボスニア・ヘルツェゴビナ: JMBG - Jedinstveni matični broj građana (個別マスター住民番号 (Unique Master Citizen Number))","ボスニア・ヘルツェゴビナのJMBG(個別マスター住民番号)を検出するよう設定します。以下より選択します。\n放置 / 削除 / 隔離 / メールにラベル付け / ブロック","OFF"]
[null,33,null,"ブラジル: CNPJ - Cadastro Nacional da Pessoa Jurídica (法人登録番号)","ブラジルのCNPJ - (法人登録番号)を検出するよう設定します。以下より選択します。\n放置 / 削除 / 隔離 / メールにラベル付け / ブロック","OFF"]
[null,34,null,"ブラジル: CPF - Cadastro de Pessoas Físicas (納税者番号 (Natural Persons Register))","ブラジルのCPF - (納税者番号 (Natural Persons Register))を検出するよう設定します。以下より選択します。\n放置 / 削除 / 隔離 / メールにラベル付け / ブロック","OFF"]
[null,35,null,"英領ヴァージン諸島: IBAN (国際銀行勘定番号)","英領ヴァージン諸島のIBAN (国際銀行勘定番号)を検出するよう設定します。以下より選択します。\n放置 / 削除 / 隔離 / メールにラベル付け / ブロック","OFF"]
[null,36,null,"ブルガリア: EGN - Edinen Grashdanski Nomer (納税者番号 (Uniform Civil Number))","ブルガリアのEGN - (納税者番号 (Uniform Civil Number))を検出するよう設定します。以下より選択します。\n放置 / 削除 / 隔離 / メールにラベル付け / ブロック","OFF"]
[null,37,null,"ブルガリア: IBAN (国際銀行勘定番号)","ブルガリアのIBAN (国際銀行勘定番号)を検出するよう設定します。以下より選択します。\n放置 / 削除 / 隔離 / メールにラベル付け / ブロック","OFF"]
[null,38,null,"カナダ: 銀行および財務情報","カナダの銀行および財務情報を検出するよう設定します。以下より選択します。\n放置 / 削除 / 隔離 / メールにラベル付け / ブロック","OFF"]
[null,39,null,"カナダ: クレジットカード名義人情報","カナダのクレジットカード名義人情報を検出するよう設定します。以下より選択します。\n放置 / 削除 / 隔離 / メールにラベル付け / ブロック","OFF"]
[null,40,null,"カナダ: 医療情報","カナダの医療情報を検出するよう設定します。以下より選択します。\n放置 / 削除 / 隔離 / メールにラベル付け / ブロック","OFF"]
[null,41,null,"カナダ: 個人情報","カナダの個人情報を検出するよう設定します。以下より選択します。\n放置 / 削除 / 隔離 / メールにラベル付け / ブロック","OFF"]
[null,42,null,"カナダ: RAMQ - Régie de l'assurance maladie du Québec (ケベック州健康保険番号)","カナダのRAMQ -(ケベック州健康保険番号)を検出するよう設定します。以下より選択します。\n放置 / 削除 / 隔離 / メールにラベル付け / ブロック","OFF"]
[null,43,null,"カナダ: SIN (社会保険番号)","カナダのSIN (社会保険番号)を検出するよう設定します。以下より選択します。\n放置 / 削除 / 隔離 / メールにラベル付け / ブロック","OFF"]
[null,44,null,"クレジットカード名義人情報","クレジットカード名義人情報を検出するよう設定します。以下より選択します。\n放置 / 削除 / 隔離 / メールにラベル付け / ブロック","OFF"]
[null,45,null,"中国: 銀行口座番号","中国の銀行口座番号を検出するよう設定します。以下より選択します。\n放置 / 削除 / 隔離 / メールにラベル付け / ブロック","OFF"]
[null,46,null,"中国: 銀行取引と財務情報","中国の銀行取引と財務情報を検出するよう設定します。以下より選択します。\n放置 / 削除 / 隔離 / メールにラベル付け / ブロック","OFF"]
[null,47,null,"中国: クレジットカード名義人情報","中国のクレジットカード名義人情報を検出するよう設定します。以下より選択します。\n放置 / 削除 / 隔離 / メールにラベル付け / ブロック","OFF"]
[null,48,null,"中国: 携帯電話番号","中国の携帯電話番号を検出するよう設定します。以下より選択します。\n放置 / 削除 / 隔離 / メールにラベル付け / ブロック","OFF"]
[null,49,null,"中国: 国民ID番号","中国の国民ID番号を検出するよう設定します。以下より選択します。\n放置 / 削除 / 隔離 / メールにラベル付け / ブロック","OFF"]
[null,50,null,"中国: 個人情報","中国の個人情報を検出するよう設定します。以下より選択します。\n放置 / 削除 / 隔離 / メールにラベル付け / ブロック","OFF"]
[null,51,null,"中国: 電話番号","中国の電話番号を検出するよう設定します。以下より選択します。\n放置 / 削除 / 隔離 / メールにラベル付け / ブロック","OFF"]
[null,52,null,"中国: 銀聯 (UnionPay) カード番号","中国の銀聯 (UnionPay) カード番号を検出するよう設定します。以下より選択します。\n放置 / 削除 / 隔離 / メールにラベル付け / ブロック","OFF"]
[null,53,null,"一般的な医学用語","一般的な医学用語を検出するよう設定します。以下より選択します。\n放置 / 削除 / 隔離 / メールにラベル付け / ブロック","OFF"]
[null,54,null,"連絡先/顧客/クライアントリスト (英語)","連絡先/顧客/クライアントリスト (英語)を検出するよう設定します。以下より選択します。\n放置 / 削除 / 隔離 / メールにラベル付け / ブロック","OFF"]
[null,55,null,"コスタリカ: IBAN (国際銀行勘定番号)","コスタリカのIBAN (国際銀行勘定番号)を検出するよう設定します。以下より選択します。\n放置 / 削除 / 隔離 / メールにラベル付け / ブロック","OFF"]
[null,56,null,"クロアチア: IBAN (国際銀行勘定番号)","クロアチアのIBAN (国際銀行勘定番号)を検出するよう設定します。以下より選択します。\n放置 / 削除 / 隔離 / メールにラベル付け / ブロック","OFF"]
[null,57,null,"クロアチア: OIB - Osobni identifikacijski broj (個人ID番号)","クロアチアのOIB -(個人ID番号)を検出するよう設定します。以下より選択します。\n放置 / 削除 / 隔離 / メールにラベル付け / ブロック","OFF"]
[null,58,null,"クロアチア: (個別マスター住民番号 (Unique Master Citizen Number)","クロアチアの(個別マスター住民番号 (Unique Master Citizen Number)を検出するよう設定します。以下より選択します。\n放置 / 削除 / 隔離 / メールにラベル付け / ブロック","OFF"]
[null,59,null,"キプロス: IBAN (国際銀行勘定番号)","キプロスのIBAN (国際銀行勘定番号)を検出するよう設定します。以下より選択します。\n放置 / 削除 / 隔離 / メールにラベル付け / ブロック","OFF"]
[null,60,null,"チェコ共和国: IBAN (国際銀行勘定番号)","チェコ共和国のIBAN (国際銀行勘定番号)を検出するよう設定します。以下より選択します。\n放置 / 削除 / 隔離 / メールにラベル付け / ブロック","OFF"]
[null,61,null,"チェコ共和国: RC - Rodne Cislo (出生番号)","チェコ共和国のRC - Rodne Cislo (出生番号)を検出するよう設定します。以下より選択します。\n放置 / 削除 / 隔離 / メールにラベル付け / ブロック","OFF"]
[null,62,null,"デンマーク: 銀行および財務情報","デンマークの銀行および財務情報を検出するよう設定します。以下より選択します。\n放置 / 削除 / 隔離 / メールにラベル付け / ブロック","OFF"]
[null,63,null,"デンマーク: クレジットカード名義人情報","デンマークのクレジットカード名義人情報を検出するよう設定します。以下より選択します。\n放置 / 削除 / 隔離 / メールにラベル付け / ブロック","OFF"]
[null,64,null,"デンマーク: CPR-nummer (個人ID番号)","デンマークのCPR-nummer (個人ID番号)を検出するよう設定します。以下より選択します。\n放置 / 削除 / 隔離 / メールにラベル付け / ブロック","OFF"]
[null,65,null,"デンマーク: IBAN (国際銀行勘定番号)","デンマークのIBAN (国際銀行勘定番号)を検出するよう設定します。以下より選択します。\n放置 / 削除 / 隔離 / メールにラベル付け / ブロック","OFF"]
[null,66,null,"デンマーク: 個人情報","デンマークの個人情報を検出するよう設定します。以下より選択します。\n放置 / 削除 / 隔離 / メールにラベル付け / ブロック","OFF"]
[null,67,null,"ドミニカ共和国: CIE - Cédula de Identidad y Electoral (個人ID番号)","ドミニカ共和国のCIE - (個人ID番号)を検出するよう設定します。以下より選択します。\n放置 / 削除 / 隔離 / メールにラベル付け / ブロック","OFF"]
[null,68,null,"ドミニカ共和国: IBAN (国際銀行勘定番号)","ドミニカ共和国のIBAN (国際銀行勘定番号)を検出するよう設定します。以下より選択します。\n放置 / 削除 / 隔離 / メールにラベル付け / ブロック","OFF"]
[null,69,null,"エストニア: IBAN (国際銀行勘定番号)","エストニアのIBAN (国際銀行勘定番号)を検出するよう設定します。以下より選択します。\n放置 / 削除 / 隔離 / メールにラベル付け / ブロック","OFF"]
[null,70,null,"エストニア: IK - Isikukood (個人識別コード)","エストニアのIK - (個人識別コード)を検出するよう設定します。以下より選択します。\n放置 / 削除 / 隔離 / メールにラベル付け / ブロック","OFF"]
[null,71,null,"欧州連合: 銀行および財務情報","欧州連合の銀行および財務情報を検出するよう設定します。以下より選択します。\n放置 / 削除 / 隔離 / メールにラベル付け / ブロック","OFF"]
[null,72,null,"欧州連合: IBAN (国際銀行勘定番号)","欧州連合のIBAN (国際銀行勘定番号)を検出するよう設定します。以下より選択します。\n放置 / 削除 / 隔離 / メールにラベル付け / ブロック","OFF"]
[null,73,null,"欧州連合: 識別番号","欧州連合の識別番号を検出するよう設定します。以下より選択します。\n放置 / 削除 / 隔離 / メールにラベル付け / ブロック","OFF"]
[null,74,null,"欧州連合:個人情報","欧州連合の個人情報を検出するよう設定します。以下より選択します。\n放置 / 削除 / 隔離 / メールにラベル付け / ブロック","OFF"]
[null,75,null,"欧州連合:電話番号","欧州連合の電話番号を検出するよう設定します。以下より選択します。\n放置 / 削除 / 隔離 / メールにラベル付け / ブロック","OFF"]
[null,76,null,"金融取引情報","金融取引情報を検出するよう設定します。以下より選択します。\n放置 / 削除 / 隔離 / メールにラベル付け / ブロック","OFF【設定推奨】",null,null,null,null,null,"隔離",null,null,"隔離"]
[null,77,null,"フィンランド: HETU - Henkilötunnus (個人識別コード)","フィンランドのHETU - (個人識別コード)を検出するよう設定します。以下より選択します。\n放置 / 削除 / 隔離 / メールにラベル付け / ブロック","OFF"]
[null,78,null,"フィンランド: IBAN (国際銀行勘定番号)","フィンランドのIBAN (国際銀行勘定番号)を検出するよう設定します。以下より選択します。\n放置 / 削除 / 隔離 / メールにラベル付け / ブロック","OFF"]
[null,79,null,"フランス: 銀行および財務情報","フランスの銀行および財務情報を検出するよう設定します。以下より選択します。\n放置 / 削除 / 隔離 / メールにラベル付け / ブロック","OFF"]
[null,80,null,"フランス: クレジットカード名義人情報","フランスのクレジットカード名義人情報を検出するよう設定します。以下より選択します。\n放置 / 削除 / 隔離 / メールにラベル付け / ブロック","OFF"]
[null,81,null,"フランス: IBAN (国際銀行勘定番号)","フランスのIBAN (国際銀行勘定番号)を検出するよう設定します。以下より選択します。\n放置 / 削除 / 隔離 / メールにラベル付け / ブロック","OFF"]
[null,82,null,"フランス: Les Codes INSEE - Institut National de la Statistique et des Études Économiques (INSEEコード)","フランスのLes Codes INSEE - (INSEEコード)を検出するよう設定します。以下より選択します。\n放置 / 削除 / 隔離 / メールにラベル付け / ブロック","OFF"]
[null,83,null,"フランス: NIR - Numéro d'Inscription au Repertoire (社会保障番号)","フランスのNIR - (社会保障番号)を検出するよう設定します。以下より選択します。\n放置 / 削除 / 隔離 / メールにラベル付け / ブロック","OFF"]
[null,84,null,"フランス: 個人情報","フランスの個人情報を検出するよう設定します。以下より選択します。\n放置 / 削除 / 隔離 / メールにラベル付け / ブロック","OFF"]
[null,85,null,"ジョージア: IBAN (国際銀行勘定番号)","ジョージアのIBAN (国際銀行勘定番号)を検出するよう設定します。以下より選択します。\n放置 / 削除 / 隔離 / メールにラベル付け / ブロック","OFF"]
[null,86,null,"ドイツ: 銀行および財務情報","ドイツの銀行および財務情報を検出するよう設定します。以下より選択します。\n放置 / 削除 / 隔離 / メールにラベル付け / ブロック","OFF"]
[null,87,null,"ドイツ: IBAN (国際銀行勘定番号)","ドイツのIBAN (国際銀行勘定番号)を検出するよう設定します。以下より選択します。\n放置 / 削除 / 隔離 / メールにラベル付け / ブロック","OFF"]
[null,88,null,"ドイツ: 電話番号","ドイツの電話番号を検出するよう設定します。以下より選択します。\n放置 / 削除 / 隔離 / メールにラベル付け / ブロック","OFF"]
[null,89,null,"ドイツ: SN - Steuernummer (納税者番号)","ドイツのSN - (納税者番号)を検出するよう設定します。以下より選択します。\n放置 / 削除 / 隔離 / メールにラベル付け / ブロック","OFF"]
[null,90,null,"ジブラルタル: IBAN (国際銀行勘定番号)","ジブラルタルのIBAN (国際銀行勘定番号)を検出するよう設定します。以下より選択します。\n放置 / 削除 / 隔離 / メールにラベル付け / ブロック","OFF"]
[null,91,null,"ギリシャ: IBAN (国際銀行勘定番号)","ギリシャのIBAN (国際銀行勘定番号)を検出するよう設定します。以下より選択します。\n放置 / 削除 / 隔離 / メールにラベル付け / ブロック","OFF"]
[null,92,null,"グリーンランド: IBAN (国際銀行勘定番号)","グリーンランドのIBAN (国際銀行勘定番号)を検出するよう設定します。以下より選択します。\n放置 / 削除 / 隔離 / メールにラベル付け / ブロック","OFF"]
[null,93,null,"グアテマラ: IBAN (国際銀行勘定番号)","グアテマラのIBAN (国際銀行勘定番号)を検出するよう設定します。以下より選択します。\n放置 / 削除 / 隔離 / メールにラベル付け / ブロック","OFF"]
[null,94,null,"医療情報","医療情報を検出するよう設定します。以下より選択します。\n放置 / 削除 / 隔離 / メールにラベル付け / ブロック","OFF"]
[null,95,null,"香港: 識別カード番号","香港の識別カード番号を検出するよう設定します。以下より選択します。\n放置 / 削除 / 隔離 / メールにラベル付け / ブロック","OFF"]
[null,96,null,"ハンガリー: IBAN (国際銀行勘定番号)","ハンガリーのIBAN (国際銀行勘定番号)を検出するよう設定します。以下より選択します。\n放置 / 削除 / 隔離 / メールにラベル付け / ブロック","OFF"]
[null,97,null,"ハンガリー: Szemelyi Szam (個人ID番号)","ハンガリーのSzemelyi Szam (個人ID番号)を検出するよう設定します。以下より選択します。\n放置 / 削除 / 隔離 / メールにラベル付け / ブロック","OFF"]
[null,98,null,"アイスランド: IBAN (国際銀行勘定番号)","アイスランドのIBAN (国際銀行勘定番号)を検出するよう設定します。以下より選択します。\n放置 / 削除 / 隔離 / メールにラベル付け / ブロック","OFF"]
[null,99,null,"インド: Aadhaar (固有識別番号)","インドのAadhaar (固有識別番号)を検出するよう設定します。以下より選択します。\n放置 / 削除 / 隔離 / メールにラベル付け / ブロック","OFF"]
[null,100,null,"インド: 銀行および財務情報","インドの銀行および財務情報を検出するよう設定します。以下より選択します。\n放置 / 削除 / 隔離 / メールにラベル付け / ブロック","OFF"]
[null,101,null,"インド: クレジットカード名義人情報","インドのクレジットカード名義人情報を検出するよう設定します。以下より選択します。\n放置 / 削除 / 隔離 / メールにラベル付け / ブロック","OFF"]
[null,102,null,"インド: 医療情報","インドの医療情報を検出するよう設定します。以下より選択します。\n放置 / 削除 / 隔離 / メールにラベル付け / ブロック","OFF"]
[null,103,null,"インド: 携帯番号","インドの携帯番号を検出するよう設定します。以下より選択します。\n放置 / 削除 / 隔離 / メールにラベル付け / ブロック","OFF"]
[null,104,null,"インド: PAN - 納税者番号 (Permanent Account Number)","インドのPAN - 納税者番号 (Permanent Account Number)を検出するよう設定します。以下より選択します。\n放置 / 削除 / 隔離 / メールにラベル付け / ブロック","OFF"]
[null,105,null,"インド: パスポート番号","インドのパスポート番号を検出するよう設定します。以下より選択します。\n放置 / 削除 / 隔離 / メールにラベル付け / ブロック","OFF"]
[null,106,null,"インド: 個人情報","インドの個人情報を検出するよう設定します。以下より選択します。\n放置 / 削除 / 隔離 / メールにラベル付け / ブロック","OFF"]
[null,107,null,"インド: 電話番号","インドの電話番号を検出するよう設定します。以下より選択します。\n放置 / 削除 / 隔離 / メールにラベル付け / ブロック","OFF"]
[null,108,null,"インド: PIN - 郵便番号","インドのPIN - 郵便番号を検出するよう設定します。以下より選択します。\n放置 / 削除 / 隔離 / メールにラベル付け / ブロック","OFF"]
[null,109,null,"インド: 車両登録番号","インドの車両登録番号を検出するよう設定します。以下より選択します。\n放置 / 削除 / 隔離 / メールにラベル付け / ブロック","OFF"]
[null,110,null,"アイルランド: 銀行および財務情報","アイルランドの銀行および財務情報を検出するよう設定します。以下より選択します。\n放置 / 削除 / 隔離 / メールにラベル付け / ブロック","OFF"]
[null,111,null,"アイルランド: クレジットカード名義人情報","アイルランドのクレジットカード名義人情報を検出するよう設定します。以下より選択します。\n放置 / 削除 / 隔離 / メールにラベル付け / ブロック","OFF"]
[null,112,null,"アイルランド: 医療情報","アイルランドの医療情報を検出するよう設定します。以下より選択します。\n放置 / 削除 / 隔離 / メールにラベル付け / ブロック","OFF"]
[null,113,null,"アイルランド: IBAN (国際銀行勘定番号)","アイルランドのIBAN (国際銀行勘定番号)を検出するよう設定します。以下より選択します。\n放置 / 削除 / 隔離 / メールにラベル付け / ブロック","OFF"]
[null,114,null,"アイルランド: 個人情報","アイルランドの個人情報を検出するよう設定します。以下より選択します。\n放置 / 削除 / 隔離 / メールにラベル付け / ブロック","OFF"]
[null,115,null,"アイルランド: PPSN (個人公共サービス番号)","アイルランドのPPSN (個人公共サービス番号)を検出するよう設定します。以下より選択します。\n放置 / 削除 / 隔離 / メールにラベル付け / ブロック","OFF"]
[null,116,null,"アイルランド: VAT (付加価値税番号)","アイルランドのVAT (付加価値税番号)を検出するよう設定します。以下より選択します。\n放置 / 削除 / 隔離 / メールにラベル付け / ブロック","OFF"]
[null,117,null,"イスラエル: IBAN (国際銀行勘定番号)","イスラエルのIBAN (国際銀行勘定番号)を検出するよう設定します。以下より選択します。\n放置 / 削除 / 隔離 / メールにラベル付け / ブロック","OFF"]
[null,118,null,"イスラエル: 国民ID番号","イスラエルの国民ID番号を検出するよう設定します。以下より選択します。\n放置 / 削除 / 隔離 / メールにラベル付け / ブロック","OFF"]
[null,119,null,"イタリア: 財務コード (Fiscal Code)","イタリアの財務コード (Fiscal Code)を検出するよう設定します。以下より選択します。\n放置 / 削除 / 隔離 / メールにラベル付け / ブロック","OFF"]
[null,120,null,"イタリア: IBAN (国際銀行勘定番号)","イタリアのIBAN (国際銀行勘定番号)を検出するよう設定します。以下より選択します。\n放置 / 削除 / 隔離 / メールにラベル付け / ブロック","OFF"]
[null,121,null,"日本: 運転免許証番号","日本の運転免許証番号を検出するよう設定します。以下より選択します。\n放置 / 削除 / 隔離 / メールにラベル付け / ブロック","OFF【設定推奨】",null,null,null,null,null,"隔離",null,null,"隔離"]
[null,122,null,"日本: マイナンバー (法人) 国の機関 10件以上で検出","日本のマイナンバー (法人) 国の機関 10件以上で検出するよう設定します。以下より選択します。\n放置 / 削除 / 隔離 / メールにラベル付け / ブロック","OFF【設定推奨】",null,null,null,null,null,"隔離",null,null,"隔離"]
[null,123,null,"日本: マイナンバー (法人) 地方公共団体 (団体コードあり) 10件以上で検出","日本のマイナンバー (法人) 地方公共団体 (団体コードあり) 10件以上で検出するよう設定します。以下より選択します。\n放置 / 削除 / 隔離 / メールにラベル付け / ブロック","OFF【設定推奨】",null,null,null,null,null,"隔離",null,null,"隔離"]
[null,124,null,"日本: マイナンバー (法人) 地方公共団体 (団体コードなし) 10件以上で検出","日本のマイナンバー (法人) 地方公共団体 (団体コードなし) 10件以上で検出するよう設定します。以下より選択します。\n放置 / 削除 / 隔離 / メールにラベル付け / ブロック","OFF【設定推奨】",null,null,null,null,null,"隔離",null,null,"隔離"]
[null,125,null,"日本: マイナンバー (法人) 設立登記のある法人 10件以上で検出","日本のマイナンバー (法人) 設立登記のある法人 10件以上で検出するよう設定します。以下より選択します。\n放置 / 削除 / 隔離 / メールにラベル付け / ブロック","OFF【設定推奨】",null,null,null,null,null,"隔離",null,null,"隔離"]
[null,126,null,"日本: マイナンバー (法人) 設立登記のない法人・人格なき社団・人格なき財団 10件以上で検出","日本のマイナンバー (法人) 設立登記のない法人・人格なき社団・人格なき財団10件以上で検出するよう設定します。以下より選択します。\n放置 / 削除 / 隔離 / メールにラベル付け / ブロック","OFF【設定推奨】",null,null,null,null,null,"隔離",null,null,"隔離"]
[null,127,null,"日本: マイナンバー個人番号 10件以上で検出 (漢字)","日本のマイナンバー個人番号 10件以上で検出 (漢字)するよう設定します。以下より選択します。\n放置 / 削除 / 隔離 / メールにラベル付け / ブロック","OFF【設定推奨】",null,null,null,null,null,"隔離",null,null,"隔離"]
[null,128,null,"日本: マイナンバー個人番号 100件以上で検出 (漢字)","日本のマイナンバー個人番号 100件以上で検出 (漢字)するよう設定します。以下より選択します。\n放置 / 削除 / 隔離 / メールにラベル付け / ブロック","OFF【設定推奨】",null,null,null,null,null,"隔離",null,null,"隔離"]
[null,129,null,"日本: マイナンバー個人番号 50件以上で検出 (漢字)","日本のマイナンバー個人番号 50件以上で検出 (漢字)するよう設定します。以下より選択します。\n放置 / 削除 / 隔離 / メールにラベル付け / ブロック","OFF【設定推奨】",null,null,null,null,null,"隔離",null,null,"隔離"]
[null,130,null,"日本: パスポート番号","日本のパスポート番号を検出するよう設定します。以下より選択します。\n放置 / 削除 / 隔離 / メールにラベル付け / ブロック","OFF【設定推奨】",null,null,null,null,null,"隔離",null,null,"隔離"]
[null,131,null,"日本: 個人情報 (名字ひらがな50件以上の組み合わせで検出)","日本の個人情報 (名字ひらがな50件以上の組み合わせで検出)を検出するよう設定します。以下より選択します。\n放置 / 削除 / 隔離 / メールにラベル付け / ブロック","OFF【設定推奨】",null,null,null,null,null,"隔離",null,null,"隔離"]
[null,132,null,"日本: 個人情報 (名字漢字10件以上の組み合わせで検出)","日本の個人情報 (名字漢字10件以上の組み合わせで検出)を検出するよう設定します。以下より選択します。\n放置 / 削除 / 隔離 / メールにラベル付け / ブロック","OFF【設定推奨】",null,null,null,null,null,"隔離",null,null,"隔離"]
[null,133,null,"日本: 個人情報 (名字漢字50件以上の組み合わせで検出)","日本の個人情報 (名字漢字50件以上の組み合わせで検出)を検出するよう設定します。以下より選択します。\n放置 / 削除 / 隔離 / メールにラベル付け / ブロック","OFF【設定推奨】",null,null,null,null,null,"隔離",null,null,"隔離"]
[null,134,null,"日本: 個人情報 (名字漢字100件以上の組み合わせで検出)","日本の個人情報 (名字漢字100件以上の組み合わせで検出)を検出するよう設定します。以下より選択します。\n放置 / 削除 / 隔離 / メールにラベル付け / ブロック","OFF【設定推奨】",null,null,null,null,null,"隔離",null,null,"隔離"]
[null,135,null,"日本: 個人情報 (名字カタカナ50件以上の組み合わせで検出)","日本の個人情報 (名字カタカナ50件以上の組み合わせで検出)を検出するよう設定します。以下より選択します。\n放置 / 削除 / 隔離 / メールにラベル付け / ブロック","OFF【設定推奨】",null,null,null,null,null,"隔離",null,null,"隔離"]
[null,136,null,"日本: 個人情報 (名字半角カタカナ50件以上の組み合わせで検出)","日本の個人情報 (名字半角カタカナ50件以上の組み合わせで検出)を検出するよう設定します。以下より選択します。\n放置 / 削除 / 隔離 / メールにラベル付け / ブロック","OFF【設定推奨】",null,null,null,null,null,"隔離",null,null,"隔離"]
[null,137,null,"カザフスタン: IBAN (国際銀行勘定番号)","カザフスタンのIBAN (国際銀行勘定番号)を検出するよう設定します。以下より選択します。\n放置 / 削除 / 隔離 / メールにラベル付け / ブロック","OFF"]
[null,138,null,"クウェート: IBAN (国際銀行勘定番号)","クウェートのIBAN (国際銀行勘定番号)を検出するよう設定します。以下より選択します。\n放置 / 削除 / 隔離 / メールにラベル付け / ブロック","OFF"]
[null,139,null,"ラトビア: IBAN (国際銀行勘定番号)","ラトビアのIBAN (国際銀行勘定番号)を検出するよう設定します。以下より選択します。\n放置 / 削除 / 隔離 / メールにラベル付け / ブロック","OFF"]
[null,140,null,"ラトビア: PK - Personas Kods (個人コード)","ラトビアのPK - (個人コード)を検出するよう設定します。以下より選択します。\n放置 / 削除 / 隔離 / メールにラベル付け / ブロック","OFF"]
[null,141,null,"レバノン: IBAN (国際銀行勘定番号)","レバノンのIBAN (国際銀行勘定番号)を検出するよう設定します。以下より選択します。\n放置 / 削除 / 隔離 / メールにラベル付け / ブロック","OFF"]
[null,142,null,"リヒテンシュタイン: IBAN (国際銀行勘定番号)","リヒテンシュタインのIBAN (国際銀行勘定番号)を検出するよう設定します。以下より選択します。\n放置 / 削除 / 隔離 / メールにラベル付け / ブロック","OFF"]
[null,143,null,"リトアニア: AK - Asmens Kodas (個人コード)","リトアニアのAK - (個人コード)を検出するよう設定します。以下より選択します。\n放置 / 削除 / 隔離 / メールにラベル付け / ブロック","OFF"]
[null,144,null,"リトアニア: IBAN (国際銀行勘定番号)","リトアニアのIBAN (国際銀行勘定番号)を検出するよう設定します。以下より選択します。\n放置 / 削除 / 隔離 / メールにラベル付け / ブロック","OFF"]
[null,145,null,"ルクセンブルク: IBAN (国際銀行勘定番号)","ルクセンブルクのIBAN (国際銀行勘定番号)を検出するよう設定します。以下より選択します。\n放置 / 削除 / 隔離 / メールにラベル付け / ブロック","OFF"]
[null,146,null,"マケドニア: IBAN (国際銀行勘定番号)","マケドニアのIBAN (国際銀行勘定番号)を検出するよう設定します。以下より選択します。\n放置 / 削除 / 隔離 / メールにラベル付け / ブロック","OFF"]
[null,147,null,"マケドニア: ЕМБГ - Единствен матичен број на граѓанинот (個別マスター住民番号 (Unique Master Citizen Number))","マケドニアのЕМБГ - (個別マスター住民番号 (Unique Master Citizen Number))を検出するよう設定します。以下より選択します。\n放置 / 削除 / 隔離 / メールにラベル付け / ブロック","OFF"]
[null,148,null,"マレーシア: 携帯電話番号","マレーシアの携帯電話番号を検出するよう設定します。以下より選択します。\n放置 / 削除 / 隔離 / メールにラベル付け / ブロック","OFF"]
[null,149,null,"マレーシア: NRIC - 国民登録識別カード番号","マレーシアのNRIC - 国民登録識別カード番号を検出するよう設定します。以下より選択します。\n放置 / 削除 / 隔離 / メールにラベル付け / ブロック","OFF"]
[null,150,null,"マレーシア: 電話番号","マレーシアの電話番号を検出するよう設定します。以下より選択します。\n放置 / 削除 / 隔離 / メールにラベル付け / ブロック","OFF"]
[null,151,null,"マルタ: IBAN (国際銀行勘定番号)","マルタのIBAN (国際銀行勘定番号)を検出するよう設定します。以下より選択します。\n放置 / 削除 / 隔離 / メールにラベル付け / ブロック","OFF"]
[null,152,null,"モーリタニア: IBAN (国際銀行勘定番号)","モーリタニアのIBAN (国際銀行勘定番号)を検出するよう設定します。以下より選択します。\n放置 / 削除 / 隔離 / メールにラベル付け / ブロック","OFF"]
[null,153,null,"モーリシャス: IBAN (国際銀行勘定番号)","モーリシャスのIBAN (国際銀行勘定番号)を検出するよう設定します。以下より選択します。\n放置 / 削除 / 隔離 / メールにラベル付け / ブロック","OFF"]
[null,154,null,"メキシコ: RFC - Registro Federal de Contribuyentes (納税者番号)","メキシコのRFC - (納税者番号)を検出するよう設定します。以下より選択します。\n放置 / 削除 / 隔離 / メールにラベル付け / ブロック","OFF"]
[null,155,null,"モルドバ: IBAN (国際銀行勘定番号)","モルドバのIBAN (国際銀行勘定番号)を検出するよう設定します。以下より選択します。\n放置 / 削除 / 隔離 / メールにラベル付け / ブロック","OFF"]
[null,156,null,"モナコ: IBAN (国際銀行勘定番号)","モナコのIBAN (国際銀行勘定番号)を検出するよう設定します。以下より選択します。\n放置 / 削除 / 隔離 / メールにラベル付け / ブロック","OFF"]
[null,157,null,"モンテネグロ: IBAN (国際銀行勘定番号)","モンテネグロのIBAN (国際銀行勘定番号)を検出するよう設定します。以下より選択します。\n放置 / 削除 / 隔離 / メールにラベル付け / ブロック","OFF"]
[null,158,null,"モンテネグロ: JMBG - Јединствени матични број грађана (個別マスター住民番号 (Unique Master Citizen Number))","モンテネグロのJMBG - (個別マスター住民番号 (Unique Master Citizen Number))を検出するよう設定します。以下より選択します。\n放置 / 削除 / 隔離 / メールにラベル付け / ブロック","OFF"]
[null,159,null,"オランダ: IBAN (国際銀行勘定番号)","オランダのIBAN (国際銀行勘定番号)を検出するよう設定します。以下より選択します。\n放置 / 削除 / 隔離 / メールにラベル付け / ブロック","OFF"]
[null,160,null,"ニュージーランド: IRD番号","ニュージーランドのIRD番号を検出するよう設定します。以下より選択します。\n放置 / 削除 / 隔離 / メールにラベル付け / ブロック","OFF"]
[null,161,null,"ニュージーランド: 国民保健検索番号","ニュージーランドの国民保健検索番号を検出するよう設定します。以下より選択します。\n放置 / 削除 / 隔離 / メールにラベル付け / ブロック","OFF"]
[null,162,null,"ナイジェリア: Verve IIN (発行者識別番号)","ナイジェリアのVerve IIN (発行者識別番号)を検出するよう設定します。以下より選択します。\n放置 / 削除 / 隔離 / メールにラベル付け / ブロック","OFF"]
[null,163,null,"ノルウェー: Fødselsnummer (国民ID番号)","ノルウェーのFødselsnummer (国民ID番号)を検出するよう設定します。以下より選択します。\n放置 / 削除 / 隔離 / メールにラベル付け / ブロック","OFF"]
[null,164,null,"ノルウェー: IBAN (国際銀行勘定番号)","ノルウェーのIBAN (国際銀行勘定番号)を検出するよう設定します。以下より選択します。\n放置 / 削除 / 隔離 / メールにラベル付け / ブロック","OFF"]
[null,165,null,"パキスタン: IBAN (国際銀行勘定番号)","パキスタンのIBAN (国際銀行勘定番号)を検出するよう設定します。以下より選択します。\n放置 / 削除 / 隔離 / メールにラベル付け / ブロック","OFF"]
[null,166,null,"ポーランド: Dowód Osobisty (国民IDカード番号)","ポーランドのDowód Osobisty (国民IDカード番号)を検出するよう設定します。以下より選択します。\n放置 / 削除 / 隔離 / メールにラベル付け / ブロック","OFF"]
[null,167,null,"ポーランド: IBAN (国際銀行勘定番号)","ポーランドのIBAN (国際銀行勘定番号)を検出するよう設定します。以下より選択します。\n放置 / 削除 / 隔離 / メールにラベル付け / ブロック","OFF"]
[null,168,null,"ポーランド: PESEL - Powszechny Elektroniczny System Ewidencji Ludności (国民ID番号)","ポーランドのPESEL - (国民ID番号)を検出するよう設定します。以下より選択します。\n放置 / 削除 / 隔離 / メールにラベル付け / ブロック","OFF"]
[null,169,null,"ポルトガル: IBAN (国際銀行勘定番号)","ポルトガルのIBAN (国際銀行勘定番号)を検出するよう設定します。以下より選択します。\n放置 / 削除 / 隔離 / メールにラベル付け / ブロック","OFF"]
[null,170,null,"人種差別","人種差別を検出するよう設定します。以下より選択します。\n放置 / 削除 / 隔離 / メールにラベル付け / ブロック","OFF"]
[null,171,null,"ルーマニア: CNP - Cod Numeric Personal (個人識別数字コード)","ルーマニアのCNP - (個人識別数字コード)を検出するよう設定します。以下より選択します。\n放置 / 削除 / 隔離 / メールにラベル付け / ブロック","OFF"]
[null,172,null,"ルーマニア: IBAN (国際銀行勘定番号)","ルーマニアのIBAN (国際銀行勘定番号)を検出するよう設定します。以下より選択します。\n放置 / 削除 / 隔離 / メールにラベル付け / ブロック","OFF"]
[null,173,null,"サンマリノ: IBAN (国際銀行勘定番号)","サンマリノのIBAN (国際銀行勘定番号)を検出するよう設定します。以下より選択します。\n放置 / 削除 / 隔離 / メールにラベル付け / ブロック","OFF"]
[null,174,null,"サウジアラビア: IBAN (国際銀行勘定番号)","サウジアラビアのIBAN (国際銀行勘定番号)を検出するよう設定します。以下より選択します。\n放置 / 削除 / 隔離 / メールにラベル付け / ブロック","OFF"]
[null,175,null,"セルビア: IBAN (国際銀行勘定番号)","セルビアのIBAN (国際銀行勘定番号)を検出するよう設定します。以下より選択します。\n放置 / 削除 / 隔離 / メールにラベル付け / ブロック","OFF"]
[null,176,null,"セルビア: JMBG - Јединствени матични број грађана (個別マスター住民番号 (Unique Master Citizen Number))","セルビアのJMBG - (個別マスター住民番号 (Unique Master Citizen Number))を検出するよう設定します。以下より選択します。\n放置 / 削除 / 隔離 / メールにラベル付け / ブロック","OFF"]
[null,177,null,"シンガポール: 銀行および財務情報","シンガポールの銀行および財務情報を検出するよう設定します。以下より選択します。\n放置 / 削除 / 隔離 / メールにラベル付け / ブロック","OFF"]
[null,178,null,"シンガポール: クレジットカード名義人情報","シンガポールのクレジットカード名義人情報を検出するよう設定します。以下より選択します。\n放置 / 削除 / 隔離 / メールにラベル付け / ブロック","OFF"]
[null,179,null,"シンガポール: 医療情報","シンガポールの医療情報を検出するよう設定します。以下より選択します。\n放置 / 削除 / 隔離 / メールにラベル付け / ブロック","OFF"]
[null,180,null,"シンガポール: NRIC - 国民登録識別カード番号","シンガポールのNRIC - 国民登録識別カード番号を検出するよう設定します。以下より選択します。\n放置 / 削除 / 隔離 / メールにラベル付け / ブロック","OFF"]
[null,181,null,"シンガポール: 個人情報","シンガポールの個人情報を検出するよう設定します。以下より選択します。\n放置 / 削除 / 隔離 / メールにラベル付け / ブロック","OFF"]
[null,182,null,"シンガポール: 電話番号","シンガポールの電話番号を検出するよう設定します。以下より選択します。\n放置 / 削除 / 隔離 / メールにラベル付け / ブロック","OFF"]
[null,183,null,"スロバキア: IBAN (国際銀行勘定番号)","スロバキアのIBAN (国際銀行勘定番号)を検出するよう設定します。以下より選択します。\n放置 / 削除 / 隔離 / メールにラベル付け / ブロック","OFF"]
[null,184,null,"スロバキア: RC - Rodne Cislo (出生番号)","スロバキアのRC - (出生番号)を検出するよう設定します。以下より選択します。\n放置 / 削除 / 隔離 / メールにラベル付け / ブロック","OFF"]
[null,185,null,"スロベニア: EMŠO - Enotna matična številka občana (個別マスター住民番号 (Unique Master Citizen Number))","スロベニアのEMŠO - (個別マスター住民番号 (Unique Master Citizen Number))を検出するよう設定します。以下より選択します。\n放置 / 削除 / 隔離 / メールにラベル付け / ブロック","OFF"]
[null,186,null,"スロベニア: IBAN (国際銀行勘定番号)","スロベニアのIBAN (国際銀行勘定番号)を検出するよう設定します。以下より選択します。\n放置 / 削除 / 隔離 / メールにラベル付け / ブロック","OFF"]
[null,187,null,"ソースコード: C#","ソースコードのC#を検出するよう設定します。以下より選択します。\n放置 / 削除 / 隔離 / メールにラベル付け / ブロック","OFF"]
[null,188,null,"ソースコード: C/C++","ソースコードのC/C++を検出するよう設定します。以下より選択します。\n放置 / 削除 / 隔離 / メールにラベル付け / ブロック","OFF"]
[null,189,null,"ソースコード: COBOL","ソースコードのCOBOLを検出するよう設定します。以下より選択します。\n放置 / 削除 / 隔離 / メールにラベル付け / ブロック","OFF"]
[null,190,null,"ソースコード: Java","ソースコードのJavaを検出するよう設定します。以下より選択します。\n放置 / 削除 / 隔離 / メールにラベル付け / ブロック","OFF"]
[null,191,null,"ソースコード: Perl","ソースコードのPerlを検出するよう設定します。以下より選択します。\n放置 / 削除 / 隔離 / メールにラベル付け / ブロック","OFF"]
[null,192,null,"ソースコード: VB","ソースコードのVBを検出するよう設定します。以下より選択します。\n放置 / 削除 / 隔離 / メールにラベル付け / ブロック","OFF"]
[null,193,null,"ソースコード","ソースコードを検出するよう設定します。以下より選択します。\n放置 / 削除 / 隔離 / メールにラベル付け / ブロック","OFF"]
[null,194,null,"韓国: 銀行および財務情報","韓国の銀行および財務情報を検出するよう設定します。以下より選択します。\n放置 / 削除 / 隔離 / メールにラベル付け / ブロック","OFF"]
[null,195,null,"韓国: クレジットカード名義人情報","韓国のクレジットカード名義人情報を検出するよう設定します。以下より選択します。\n放置 / 削除 / 隔離 / メールにラベル付け / ブロック","OFF"]
[null,196,null,"韓国: 住民登録番号","韓国の住民登録番号を検出するよう設定します。以下より選択します。\n放置 / 削除 / 隔離 / メールにラベル付け / ブロック","OFF"]
[null,197,null,"スペイン: DNI - Documento Nacional de Identidad (国民IDカード番号)","スペインのDNI - (国民IDカード番号)を検出するよう設定します。以下より選択します。\n放置 / 削除 / 隔離 / メールにラベル付け / ブロック","OFF"]
[null,198,null,"スペイン: フルネーム","スペインのフルネームを検出するよう設定します。以下より選択します。\n放置 / 削除 / 隔離 / メールにラベル付け / ブロック","OFF"]
[null,199,null,"スペイン: IBAN (国際銀行勘定番号)","スペインのIBAN (国際銀行勘定番号)を検出するよう設定します。以下より選択します。\n放置 / 削除 / 隔離 / メールにラベル付け / ブロック","OFF"]
[null,200,null,"スペイン: NAF - Número de Afiliacion a la Seguridad Social (社会保障番号)","スペインのNAF - (社会保障番号)を検出するよう設定します。以下より選択します。\n放置 / 削除 / 隔離 / メールにラベル付け / ブロック","OFF"]
[null,201,null,"スペイン: NIF - Número de Identificación Fiscal (納税者番号)","スペインのNIF - (納税者番号)を検出するよう設定します。以下より選択します。\n放置 / 削除 / 隔離 / メールにラベル付け / ブロック","OFF"]
[null,202,null,"スウェーデン: IBAN (国際銀行勘定番号)","スウェーデンのIBAN (国際銀行勘定番号)を検出するよう設定します。以下より選択します。\n放置 / 削除 / 隔離 / メールにラベル付け / ブロック","OFF"]
[null,203,null,"スウェーデン: Personnummer (個人ID番号)","スウェーデンのPersonnummer (個人ID番号)を検出するよう設定します。以下より選択します。\n放置 / 削除 / 隔離 / メールにラベル付け / ブロック","OFF"]
[null,204,null,"スイス: IBAN (国際銀行勘定番号)","スイスのIBAN (国際銀行勘定番号)を検出するよう設定します。以下より選択します。\n放置 / 削除 / 隔離 / メールにラベル付け / ブロック","OFF"]
[null,205,null,"台湾: 住所","台湾の住所を検出するよう設定します。以下より選択します。\n放置 / 削除 / 隔離 / メールにラベル付け / ブロック","OFF"]
[null,206,null,"台湾: 銀行口座番号","台湾の銀行口座番号を検出するよう設定します。以下より選択します。\n放置 / 削除 / 隔離 / メールにラベル付け / ブロック","OFF"]
[null,207,null,"台湾: 国泰世華銀行の口座番号","台湾の国泰世華銀行の口座番号を検出するよう設定します。以下より選択します。\n放置 / 削除 / 隔離 / メールにラベル付け / ブロック","OFF"]
[null,208,null,"台湾: IMSI (国際移動体加入者識別番号)","台湾のIMSI (国際移動体加入者識別番号)を検出するよう設定します。以下より選択します。\n放置 / 削除 / 隔離 / メールにラベル付け / ブロック","OFF"]
[null,209,null,"台湾: 日盛銀行の口座番号","台湾の日盛銀行の口座番号を検出するよう設定します。以下より選択します。\n放置 / 削除 / 隔離 / メールにラベル付け / ブロック","OFF"]
[null,210,null,"台湾: 兆豊銀行の口座番号","台湾の兆豊銀行の口座番号を検出するよう設定します。以下より選択します。\n放置 / 削除 / 隔離 / メールにラベル付け / ブロック","OFF"]
[null,211,null,"台湾: 携帯電話番号","台湾の携帯電話番号を検出するよう設定します。以下より選択します。\n放置 / 削除 / 隔離 / メールにラベル付け / ブロック","OFF"]
[null,212,null,"台湾: 名前","台湾の名前を検出するよう設定します。以下より選択します。\n放置 / 削除 / 隔離 / メールにラベル付け / ブロック","OFF"]
[null,213,null,"台湾: 国民健康保険 (NHI) 薬品コード","台湾の国民健康保険 (NHI) 薬品コードを検出するよう設定します。以下より選択します。\n放置 / 削除 / 隔離 / メールにラベル付け / ブロック","OFF"]
[null,214,null,"台湾: 国民ID番号","台湾の国民ID番号を検出するよう設定します。以下より選択します。\n放置 / 削除 / 隔離 / メールにラベル付け / ブロック","OFF"]
[null,215,null,"台湾: SKH診療記録番号","台湾のSKH診療記録番号を検出するよう設定します。以下より選択します。\n放置 / 削除 / 隔離 / メールにラベル付け / ブロック","OFF"]
[null,216,null,"台湾: VGH診療記録番号","台湾のVGH診療記録番号を検出するよう設定します。以下より選択します。\n放置 / 削除 / 隔離 / メールにラベル付け / ブロック","OFF"]
[null,217,null,"タイ: 国民ID番号","タイの国民ID番号を検出するよう設定します。以下より選択します。\n放置 / 削除 / 隔離 / メールにラベル付け / ブロック","OFF"]
[null,218,null,"タイ: SCB銀行口座番号","タイのSCB銀行口座番号を検出するよう設定します。以下より選択します。\n放置 / 削除 / 隔離 / メールにラベル付け / ブロック","OFF"]
[null,219,null,"タイ: SCB銀行借入口座番号","タイのSCB銀行借入口座番号を検出するよう設定します。以下より選択します。\n放置 / 削除 / 隔離 / メールにラベル付け / ブロック","OFF"]
[null,220,null,"チュニジア: IBAN (国際銀行勘定番号)","チュニジアのIBAN (国際銀行勘定番号)を検出するよう設定します。以下より選択します。\n放置 / 削除 / 隔離 / メールにラベル付け / ブロック","OFF"]
[null,221,null,"トルコ: IBAN (国際銀行勘定番号)","トルコのIBAN (国際銀行勘定番号)を検出するよう設定します。以下より選択します。\n放置 / 削除 / 隔離 / メールにラベル付け / ブロック","OFF"]
[null,222,null,"トルコ: T.C. Kimlik No. - Türkiye Cumhuriyeti Kimlik Numarası (個人ID番号)","トルコのT.C. Kimlik No. - (個人ID番号)を検出するよう設定します。以下より選択します。\n放置 / 削除 / 隔離 / メールにラベル付け / ブロック","OFF"]
[null,223,null,"英国: 銀行および財務情報","英国の銀行および財務情報を検出するよう設定します。以下より選択します。\n放置 / 削除 / 隔離 / メールにラベル付け / ブロック","OFF"]
[null,224,null,"英国: クレジットカード名義人情報","英国のクレジットカード名義人情報を検出するよう設定します。以下より選択します。\n放置 / 削除 / 隔離 / メールにラベル付け / ブロック","OFF"]
[null,225,null,"英国: 医療情報","英国の医療情報を検出するよう設定します。以下より選択します。\n放置 / 削除 / 隔離 / メールにラベル付け / ブロック","OFF"]
[null,226,null,"英国: 自宅住所","英国の自宅住所を検出するよう設定します。以下より選択します。\n放置 / 削除 / 隔離 / メールにラベル付け / ブロック","OFF"]
[null,227,null,"英国: IBAN (国際銀行勘定番号)","英国のIBAN (国際銀行勘定番号)を検出するよう設定します。以下より選択します。\n放置 / 削除 / 隔離 / メールにラベル付け / ブロック","OFF"]
[null,228,null,"英国: NHS番号 (国民健康サービス番号)","英国のNHS番号 (国民健康サービス番号)を検出するよう設定します。以下より選択します。\n放置 / 削除 / 隔離 / メールにラベル付け / ブロック","OFF"]
[null,229,null,"英国: NIN (国民保険番号)","英国のNIN (国民保険番号)を検出するよう設定します。以下より選択します。\n放置 / 削除 / 隔離 / メールにラベル付け / ブロック","OFF"]
[null,230,null,"英国: 個人情報","英国の個人情報を検出するよう設定します。以下より選択します。\n放置 / 削除 / 隔離 / メールにラベル付け / ブロック","OFF"]
[null,231,null,"英国: RD&E病院の患者番号","英国のRD&E病院の患者番号を検出するよう設定します。以下より選択します。\n放置 / 削除 / 隔離 / メールにラベル付け / ブロック","OFF"]
[null,232,null,"アラブ首長国連邦: IBAN (国際銀行勘定番号)","アラブ首長国連邦のIBAN (国際銀行勘定番号)を検出するよう設定します。以下より選択します。\n放置 / 削除 / 隔離 / メールにラベル付け / ブロック","OFF"]
[null,233,null,"米国: ABAナンバー","米国のABAナンバーを検出するよう設定します。以下より選択します。\n放置 / 削除 / 隔離 / メールにラベル付け / ブロック","OFF"]
[null,234,null,"米国: 銀行および財務情報","米国の銀行および財務情報を検出するよう設定します。以下より選択します。\n放置 / 削除 / 隔離 / メールにラベル付け / ブロック","OFF"]
[null,235,null,"米国: カリフォルニアIDまたは運転免許証番号","米国のカリフォルニアIDまたは運転免許証番号を検出するよう設定します。以下より選択します。\n放置 / 削除 / 隔離 / メールにラベル付け / ブロック","OFF"]
[null,236,null,"米国: クレジットカード名義人情報","米国のクレジットカード名義人情報を検出するよう設定します。以下より選択します。\n放置 / 削除 / 隔離 / メールにラベル付け / ブロック","OFF"]
[null,237,null,"米国: ドル単位の金額","米国のドル単位の金額を検出するよう設定します。以下より選択します。\n放置 / 削除 / 隔離 / メールにラベル付け / ブロック","OFF"]
[null,238,null,"米国: 金融取引情報","米国の金融取引情報を検出するよう設定します。以下より選択します。\n放置 / 削除 / 隔離 / メールにラベル付け / ブロック","OFF"]
[null,239,null,"米国: GLBA","米国のGLBAを検出するよう設定します。以下より選択します。\n放置 / 削除 / 隔離 / メールにラベル付け / ブロック","OFF"]
[null,240,null,"米国: HCFA (CMS) 1500フォーム","米国のHCFA (CMS) 1500フォームを検出するよう設定します。以下より選択します。\n放置 / 削除 / 隔離 / メールにラベル付け / ブロック","OFF"]
[null,241,null,"米国: HICN (健康保険請求番号)","米国のHICN (健康保険請求番号)を検出するよう設定します。以下より選択します。\n放置 / 削除 / 隔離 / メールにラベル付け / ブロック","OFF"]
[null,242,null,"米国: HIPAA","米国のHIPAAを検出するよう設定します。以下より選択します。\n放置 / 削除 / 隔離 / メールにラベル付け / ブロック","OFF"]
[null,243,null,"米国: NPI (国家プロバイダ認証)","米国のNPI (国家プロバイダ認証)を検出するよう設定します。以下より選択します。\n放置 / 削除 / 隔離 / メールにラベル付け / ブロック","OFF"]
[null,244,null,"米国: PCI-DSS","米国のPCI-DSSを検出するよう設定します。以下より選択します。\n放置 / 削除 / 隔離 / メールにラベル付け / ブロック","OFF"]
[null,245,null,"米国: 電話番号","米国の電話番号を検出するよう設定します。以下より選択します。\n放置 / 削除 / 隔離 / メールにラベル付け / ブロック","OFF"]
[null,246,null,"米国: PII (個人情報)","米国のPII (個人情報)を検出するよう設定します。以下より選択します。\n放置 / 削除 / 隔離 / メールにラベル付け / ブロック","OFF"]
[null,247,null,"米国: サーベーンズ・オクスレー法 (Sarbanes-Oxley Act)","米国のサーベーンズ・オクスレー法 (Sarbanes-Oxley Act)を検出するよう設定します。以下より選択します。\n放置 / 削除 / 隔離 / メールにラベル付け / ブロック","OFF"]
[null,248,null,"米国: SB-1386","米国のSB-1386を検出するよう設定します。以下より選択します。\n放置 / 削除 / 隔離 / メールにラベル付け / ブロック","OFF"]
[null,249,null,"米国: SSN (社会保障番号)","米国のSSN (社会保障番号)を検出するよう設定します。以下より選択します。\n放置 / 削除 / 隔離 / メールにラベル付け / ブロック","OFF"]
[null,250,null,"米国: UB-04フォーム","米国のUB-04フォームを検出するよう設定します。以下より選択します。\n放置 / 削除 / 隔離 / メールにラベル付け / ブロック","OFF"]
[null,251,null,"通知"]
[null,252,null,"管理者に通知する","実行された処理の通知を管理者に行うかを設定します。","ON",null,null,null,null,null,"ON",null,null,"ON"]
[null,253,null,"通知のしきい値","通知を行う頻度を設定します。\n1.一括通知を時間に応じて通知する。1時間～n日単位で設定できます。\n2.一括通知を件数ごとに通知します。\n3.個別に通知します","設定する番号及び通知する条件を記載します。\n例：1、および2時間ごと",null,null,null,null,null,"1 及び 2日ごと",null,null,"2　及び 200件ごと"]
[null,254,null,"ユーザーに通知する","実行された処理の通知をユーザーに行うかを設定します。","OFF",null,null,null,null,null,"OFF",null,null,"OFF"]
[null,255,"キーワード抽出","キーワード抽出を有効にする ","キーワード抽出を有効にするかを設定します。","OFF"]
[null,256,null,"ルール"]
[null,257,null,"ファイル形式:","キーワード抽出を行うファイルの形式を設定します。以下を設定できます。\n1,テキスト \n2,Adobe PDF \n3,Microsoft Word、Excel、PowerPoint (ヘッダ、フッタ、プロパティのみ) ","ONに変更する数字を記載します。"]
[null,258,null,"条件","抽出条件を指定します。以下から設定できます。\n1,含む\n2,含まない","1,含む"]
[null,259,null,"キーワード:","抽出するキーワードを独自に設定します。"]
[null,260,null,"処理"]
[null,261,null,"処理：","抽出したキーワードに対する処理を設定します。以下から設定できます。\n1,通知\n2,通知しない","2,通知しない"]
[null,262,null,"通知"]
[null,263,null,"管理者に通知する","実行された処理の通知を管理者に行うかを設定します。","ON"]
[null,264,null,"通知のしきい値","通知を行う頻度を設定します。\n1.一括通知を時間に応じて通知する。1時間～n日単位で設定できます。\n2.一括通知を件数ごとに通知します。\n3.個別に通知します","設定する番号及び通知する条件を記載します。\n例：1、および2時間ごと"]
[null,265,null,"ユーザーに通知する","実行された処理の通知をユーザーに行うかを設定します。","OFF"]
[null,266,"共有リンク制御","一般"]
[null,267,null,"共有リンク制御を有効にする","BOXの共有リンク制御を有効にします。","OFF"]
[null,268,null,"ポリシー名：","実行された際に表示されるポリシー名です。","共有リンク制御ポリシー"]
[null,269,null,"概要：","ポリシー名の概要が記載されます","Boxでファイルおよびフォルダへの共有リンクの作成の管理に使用されるポリシー"]
[null,270,null,"共有リンク制御"]
[null,271,null,"処理","ポリシーが実行された際の処理を設定します。","以下から設定を選択します。\n 「リンクの削除」 / 「放置」 および 「通知」 / 「通知しない」"]
[null,272,null,"除外","ポリシー対象から除外するユーザおよび項目を定義します。"]
[null,273,null,"通知"]
[null,274,null,"管理者に通知する","実行された処理の通知を管理者に行うかを設定します。","ON"]
[null,275,null,"通知のしきい値","通知を行う頻度を設定します。\n1.一括通知を時間に応じて通知する。1時間～n日単位で設定できます。\n2.一括通知を件数ごとに通知します。\n3.個別に通知します","設定する番号及び通知する条件を記載します。\n例：1、および2時間ごと"]
[null,276,null,"ユーザーに通知する","実行された処理の通知をユーザーに行うかを設定します。","OFF"]

{"sheet":"Config","index":5,"n_rows":30,"n_cols":12,"rows_kept":30,"cut":false,"hidden":true,"merged":[]}
[]
[null,"推奨設定"]
[null,"　"," "]
[null,"○",1,"ON","隔離　及び　通知","01.リスク高 / 隔離 および 通知","削除 及び　通知","放置","リンクの削除 および 通知","隔離　及び　通知","隔離　及び　通知","削除 及び　通知"]
[null,null,2,"OFF","隔離　及び　通知しない","02.リスク高 / 隔離 および 通知しない","削除 及び　通知しない","削除","リンクの削除 および 通知しない","隔離　及び　通知しない","隔離　及び　通知しない","削除 及び　通知しない"]
[null,null,3,null,"削除　及び　通知","03.リスク高 / 削除 および 通知","隔離 及び　通知","隔離","放置 および 通知","削除　及び　通知","削除　及び　通知","隔離 及び　通知"]
[null,null,4,null,"削除　及び　通知しない","04.リスク高 / 削除 および 通知しない","隔離 及び　通知しない","メールにラベル付け","放置 および 通知しない","削除　及び　通知しない","削除　及び　通知しない","隔離 及び　通知しない"]
[null,null,null,null,"放置　及び　通知","05.リスク高 / 放置 および 通知","メールにラベル付け 及び　通知","ブロック",null,"放置　及び　通知","メールにラベル付け　及び　通知","件名にタグを挿入 及び　通知"]
[null,null,null,null,"放置　及び　通知しない","06.リスク高 / 放置 および 通知しない","メールにラベル付け 及び　通知しない",null,null,"放置　及び　通知しない","メールにラベル付け　及び　通知しない","件名にタグを挿入 及び　通知しない"]
[null,null,null,null,"メールにラベル付け　及び　通知",null,"スパムメールへ移動 及び　通知",null,null,"メールにラベル付け　及び　通知",null,"迷惑メールフォルダへ移動 及び　通知"]
[null,null,null,null,"メールにラベル付け　及び　通知しない","07.リスク中 / 隔離 および 通知","スパムメールへ移動 及び　通知しない",null,null,"メールにラベル付け　及び　通知しない",null,"迷惑メールフォルダへ移動 及び　通知しない"]
[null,null,null,null,"テキスト/ファイルで置換　及び　通知","08.リスク中 / 隔離 および 通知しない","放置　及び　通知",null,null,"件名にタグを挿入　及び　通知",null,"放置　及び　通知"]
[null,null,null,null,"テキスト/ファイルで置換　及び　通知しない","09.リスク中 / 削除 および 通知","放置　及び　通知しない",null,null,"件名にタグを挿入　及び　通知しない",null,"放置　及び　通知しない"]
[null,null,null,null,null,"10.リスク中 / 削除 および 通知しない"]
[null,null,null,null,null,"11.リスク中 / 放置 および 通知"]
[null,null,null,null,null,"12.リスク中 / 放置 および 通知しない"]
[]
[null,null,null,null,null,"13.リスク低 / 隔離 および 通知"]
[null,null,null,null,null,"14.リスク低 / 隔離 および 通知しない"]
[null,null,null,null,null,"15.リスク低 / 削除 および 通知"]
[null,null,null,null,null,"16.リスク低 / 削除 および 通知しない"]
[null,null,null,null,null,"17.リスク低 / 放置 および 通知"]
[null,null,null,null,null,"18.リスク低 / 放置 および 通知しない"]
[]
[null,null,null,null,null,"19.未評価  / 隔離 および 通知"]
[null,null,null,null,null,"20.未評価  / 隔離 および 通知しない"]
[null,null,null,null,null,"21.未評価  / 削除 および 通知"]
[null,null,null,null,null,"22.未評価  / 削除 および 通知しない"]
[null,null,null,null,null,"23.未評価  / 放置 および 通知"]
[null,null,null,null,null,"24.未評価  / 放置 および 通知しない"]